Cogmind - Beta 9.6 @@@ ROGUE MODE // 2020.06.06 @ 12:57:15 Player: Terminus Result: Heading to fleet! Performance ------------- Evolutions (9) 4500 Regions Visited (41) 8200 Robots Destroyed (680) 3400 Value Destroyed (32233) 32233 Prototype IDs (75) 1500 Alien Tech Used (14) 2800 Bonus (32710) 32710 TOTAL SCORE: 85343 Bonus ------- High Alert Combat Kills 10325 Follower Combat Kills 2619 Network Hubs Disabled 200 Met Data Miner 300 Met Imprinter 300 Met Zhirov 300 Built Enhanced Grunts 300 Used Core Reset Matrix 3000 Destroyed MAIN.C Guards 500 Met MAIN.C 5000 Destroyed MAIN.C Shell 5000 Destroyed MAIN.C 10000 Win 3000 Friendly Fire -8134 Cogmind --------- Core Integrity 1082/1600 Matter 300/300 Energy 1620/1630 System Corruption 0% Temperature Cool (10) Movement Hovering (44) Location To Fleet Rendezvous Parts ------- > --- POWER (2) -------- Zero-point Reactor Zero-point Reactor > --- PROPULSION (5) --- Combat Linear Gravjet Combat Linear Gravjet Combat Linear Gravjet Combat Linear Gravjet Combat Linear Gravjet > --- UTILITY (16) ----- Coolant Network Large Storage Unit Large Storage Unit Large Storage Unit Experimental Energy Well Experimental Targeting Computer Experimental Targeting Computer Experimental Target Analyzer Advanced Armor Integrity Analyzer Quantum Capacitor Heavy Regenerative Plating Beam Splitter AEGIS Remote Shield > --- WEAPON (3) ------- Helical Railgun Helical Railgun Helical Railgun > --- INVENTORY (22) --- Improved Quantum Reactor Zero-point Reactor Combat Linear Gravjet Experimental Energy Well (1000) Experimental Energy Well (1000) Experimental Matter Compressor (500) Experimental Matter Compressor (500) Experimental Targeting Computer Advanced Phase Shifter Experimental Force Field Improved Hacking Suite GOLEM Unit High-powered Transdimensional Reconstructor Gamma Rifle Gamma Rifle Sigix Quantum Sheargun Enhanced Nova Cannon Improved Heavy Machine Gun Improved Heavy Machine Gun Improved Heavy Machine Gun Improved Proton Missile Launcher Peak State ------------ > --- POWER ------------ Zero-point Reactor Zero-point Reactor > --- PROPULSION ------- Combat Linear Gravjet Combat Linear Gravjet Combat Linear Gravjet Combat Linear Gravjet Combat Linear Gravjet > --- UTILITY ---------- Coolant Network Large Storage Unit Large Storage Unit Large Storage Unit Experimental Energy Well Experimental Targeting Computer Experimental Targeting Computer Experimental Target Analyzer Advanced Armor Integrity Analyzer Particle Accelerator Experimental Weapon Cycler Advanced Reaction Control System Heavy Regenerative Plating AEGIS Remote Shield > --- WEAPON ----------- Sigix Quantum Sheargun Perforator > --- INVENTORY -------- Improved Quantum Reactor Zero-point Reactor Combat Linear Gravjet Experimental Heat Sink Experimental Energy Well Experimental Energy Well Experimental Matter Compressor Experimental Targeting Computer Quantum Capacitor Advanced Phase Shifter Experimental Force Field Improved Hacking Suite GOLEM Unit High-powered Transdimensional Reconstructor Gamma Rifle Gamma Rifle Enhanced Nova Cannon Improved Proton Missile Launcher [Rating: 229] Favorites ----------- Power Mini Fusion Reactor Engine Heavy Ion Engine Reactor Mini Fusion Reactor Propulsion Combat Linear Gravjet Leg Carbon-fiber Leg Hover Unit Combat Linear Gravjet Utility Large Storage Unit Device Experimental Sensor Array Storage Large Storage Unit Processor Experimental Targeting Computer Hackware Experimental Hacking Suite Protection Heavy Regenerative Plating Weapon Cooled Plasma Cannon Energy Gun Advanced Beam Rifle Energy Cannon Cooled Plasma Cannon Ballistic Gun Minigun Ballistic Cannon Perforator Launcher Proton Missile Launcher Special Weapon Remote Datajack Slashing Weapon Katana Piercing Weapon Lance Build | -11 -10 -10 -9 -9 -9 -8 -8 -8 -7 -7 -7 -7 -7 -7 -6 -6 -6 -6 -6 -5 -5 -5 -5 -5 -5 -5 -5 -4 -4 -4 -4 -4 -4 -3 -3 -3 -2 -2 -2 -1 -1 ------- Run | Scr Mat Min Mat Min Exi Min Mat Sto Fac Was Fac Low Low Dat Pro Fac Low Low Zio Pro Fac Was Fac Ext Cet Arc Hub Fac Was Fac Upp Upp Zhi Pro Res Qua Res Tes Sec Acc Com Slots Evolved 18 | . . . 2 . . . 2 . 2 . . . . . . 2 . . . . 2 . . . . . . 2 . . . . . . 2 . 2 . . 2 . Power 1 | . . . . . . . . . . . . . . . . . . . . . . . . . . . . . . . . . . . . . 1 . . . . Propulsion 2 | . . . . . . . 1 . . . . . . . . 1 . . . . . . . . . . . . . . . . . . . . . . . . . Utility 14 | . . . 2 . . . 1 . 2 . . . . . . 1 . . . . 2 . . . . . . 2 . . . . . . 2 . 1 . . 1 . Weapon 1 | . . . . . . . . . . . . . . . . . . . . . . . . . . . . . . . . . . . . . . . . 1 . Parts Attached 561 | 7 14 5 34 2 2 8 12 65 39 6 31 11 . 2 1 31 2 4 . 4 14 1 4 4 15 7 2 5 2 11 4 . 4 2 13 9 28 19 40 45 52 Power 35 | 1 1 . 5 . . . 1 4 2 1 . . . . . 2 . . . . 2 . 1 . . . . . . . . . 2 . . 1 2 2 1 3 4 Engine 15 | 1 1 . 5 . . . 1 3 2 . . . . . . 1 . . . . 1 . . . . . . . . . . . . . . . . . . . . Core . | . . . . . . . . . . . . . . . . . . . . . . . . . . . . . . . . . . . . . . . . . . Reactor 20 | . . . . . . . . 1 . 1 . . . . . 1 . . . . 1 . 1 . . . . . . . . . 2 . . 1 2 2 1 3 4 Propulsion 80 | 2 5 2 7 1 . 3 4 12 4 2 6 . . . . 6 . . . . 4 . 1 . . . . . . 4 . . . . 4 . 2 1 2 6 2 Treads . | . . . . . . . . . . . . . . . . . . . . . . . . . . . . . . . . . . . . . . . . . . Leg 44 | 2 5 2 7 1 . 3 4 10 4 1 5 . . . . . . . . . . . . . . . . . . . . . . . . . . . . . . Wheel . | . . . . . . . . . . . . . . . . . . . . . . . . . . . . . . . . . . . . . . . . . . Hover 36 | . . . . . . . . 2 . 1 1 . . . . 6 . . . . 4 . 1 . . . . . . 4 . . . . 4 . 2 1 2 6 2 Flight . | . . . . . . . . . . . . . . . . . . . . . . . . . . . . . . . . . . . . . . . . . . Utility 223 | 1 4 . 6 . 2 2 2 16 18 2 7 4 . . 1 13 2 2 . 2 6 1 1 2 7 3 2 5 2 7 3 . 2 2 7 5 11 12 16 29 16 Device 105 | . . . . . . 1 . 6 8 2 4 2 . . . 5 1 1 . 1 2 . . 2 3 1 1 . 2 3 2 . 1 1 3 3 8 10 6 15 11 Storage 32 | 1 3 . 3 . 2 . . 1 . . . . . . . 1 . . . . . . . . 2 . . . . . . . . . 1 1 1 2 4 7 3 Processor 14 | . . . . . . . . . 1 . . . . . . . . . . . 1 . 1 . . . . . . 1 . . . . 2 . . . 4 2 2 Hackware 27 | . . . . . . . . . 4 . 1 . . . . 3 . . . . 3 1 . . . 2 . 5 . . . . 1 . 1 1 1 . . 4 . Protection 45 | . 1 . 3 . . 1 2 9 5 . 2 2 . . 1 4 1 1 . 1 . . . . 2 . 1 . . 3 1 . . 1 . . 1 . 2 1 . Artifact . | . . . . . . . . . . . . . . . . . . . . . . . . . . . . . . . . . . . . . . . . . . Weapon 223 | 3 4 3 16 1 . 3 5 33 15 1 18 7 . 2 . 10 . 2 . 2 2 . 1 2 8 4 . . . . 1 . . . 2 3 13 4 21 7 30 Energy Gun 36 | 3 . . 5 . . . . 13 5 . . . . . . 1 . . . . . . . . . . . . . . . . . . . . . . . . 9 Energy Cannon 84 | . . . 1 1 . 1 3 10 5 1 9 4 . 2 . 5 . 1 . . . . . 2 4 2 . . . . 1 . . . 1 2 8 4 8 5 4 Ballistic Gun 33 | . 3 2 6 . . 1 1 1 . . . . . . . . . . . . . . . . . . . . . . . . . . . . . . 12 1 6 Ballistic Cannon 12 | . . . . . . . . . . . 3 . . . . . . . . . . . . . . . . . . . . . . . . . . . . 1 8 Launcher 32 | . 1 1 4 . . 1 1 5 1 . 2 3 . . . 1 . . . 2 . . . . 2 . . . . . . . . . 1 1 5 . . . 1 Special Weapon 10 | . . . . . . . . 1 1 . 1 . . . . 1 . . . . 2 . 1 . 1 1 . . . . . . . . . . . . 1 . . Impact Weapon . | . . . . . . . . . . . . . . . . . . . . . . . . . . . . . . . . . . . . . . . . . . Slashing Weapon 14 | . . . . . . . . 3 3 . 3 . . . . 2 . 1 . . . . . . 1 1 . . . . . . . . . . . . . . . Piercing Weapon 2 | . . . . . . . . . . . . . . . . . . . . . . . . . . . . . . . . . . . . . . . . . 2 Special Melee Weapon . | . . . . . . . . . . . . . . . . . . . . . . . . . . . . . . . . . . . . . . . . . . Unidentified Prototypes 50 | . . . 3 . . . 1 15 . 1 2 . . . . 1 . . . . . . . . 3 . . . . . . . 2 . . . . 1 7 4 10 Parts Lost 68 | . 2 . 6 1 . 3 . 8 5 . 1 3 . . 1 1 . . . 1 1 . . 1 . . . . . . 1 . . . 2 1 8 4 3 7 8 Power 8 | . 1 . 2 . . . . . 1 . . . . . . . . . . . . . . . . . . . . . . . . . . . 1 1 . 1 1 Propulsion 8 | . . . 1 . . 1 . 1 2 . . . . . . . . . . . . . . . . . . . . . . . . . . . 2 . . 1 . Utility 23 | . . . 1 . . 1 . 3 . . 1 1 . . 1 1 . . . . 1 . . 1 . . . . . . . . . . 1 1 1 1 2 3 3 Weapon 29 | . 1 . 2 1 . 1 . 4 2 . . 2 . . . . . . . 1 . . . . . . . . . . 1 . . . 1 . 4 2 1 2 4 Highest Loss Streak 4 | . 2 . 3 1 . 2 . 3 3 . 1 3 . . 1 1 . . . 1 1 . . 1 . . . . . . 1 . . . 1 1 4 2 2 3 3 Average Slot Usage (%) 98 | . 96 100 99 100 100 100 99 99 99 100 99 100 100 85 100 98 100 100 100 100 100 100 99 100 100 100 100 100 100 100 99 100 100 100 99 99 99 97 92 92 90 Engine 4 | . 13 14 10 11 11 11 9 9 6 2 . . . . . 3 6 6 6 6 3 . . . . . . . . . . . . . . . . . . . . Reactor 3 | . . . . . . . . . . 4 7 7 7 7 7 2 . . . . 1 5 5 5 5 5 5 5 5 5 5 5 5 5 4 3 8 7 8 6 7 Leg 11 | . 28 28 21 22 22 22 26 26 22 23 23 23 23 23 23 4 . . . . . . . . . . . . . . . . . . . . . . . . . Hover 10 | . . . . . . . . . . . . . . . . 20 26 26 26 26 23 23 22 23 23 23 23 21 21 21 21 21 21 21 19 19 16 17 18 18 19 Device 8 | . . . . . . 5 9 9 9 7 8 13 15 15 15 12 10 12 13 12 11 11 11 11 9 11 10 10 10 9 9 10 10 6 8 8 12 11 7 8 13 Storage 21 | . 24 28 33 33 33 33 27 27 23 23 23 23 23 23 23 20 20 20 20 20 17 17 17 17 18 17 17 15 15 15 15 15 15 15 13 14 15 17 16 11 13 Processor 7 | . . . . . . . . . 7 7 7 7 7 7 7 6 6 6 6 6 5 5 8 11 11 11 11 10 10 10 10 10 10 10 14 14 13 13 14 15 15 Hackware 10 | . . . . . . . . . 11 15 12 7 7 7 6 10 13 13 13 13 23 23 19 17 17 17 17 26 26 26 26 26 26 26 22 22 18 17 12 16 7 Protection 3 | . 2 . 10 11 11 5 8 8 . . 1 1 . . . 2 1 . . . . . . . . . . . . . . . . 3 4 4 3 4 3 2 3 Energy Gun 1 | . 1 . 4 . . . . 10 5 . . . . . . . . . . . . . . . . . . . . . . . . . . . . . . . 2 Energy Cannon 6 | . . . . 10 11 16 17 5 4 12 8 12 15 1 15 5 6 5 6 5 . . . 10 6 2 11 10 10 10 9 10 10 10 8 8 7 7 1 1 1 Ballistic Gun 4 | . 24 28 17 11 11 5 . . . . . . . . . . . . . . . . . . . . . . . . . . . . . . . . 6 4 3 Slashing Weapon 1 | . . . . . . . . 1 4 2 3 . . . . 4 . 3 6 6 5 5 5 . 1 3 . . . . . . . . . . . . . . . Naked Turns . | . . . . . . . . . . . . . . . . . . . . . . . . . . . . . . . . . . . . . . . . . . Heaviest Build 153 | 13 59 59 85 86 86 86 89 87 93 96 104 103 99 99 106 106 83 77 73 79 71 62 62 74 78 74 74 74 74 81 74 73 73 80 81 81 107 112 120 140 153 Greatest Support 170 | 20 20 30 30 26 26 26 41 45 65 65 68 68 68 68 68 88 88 88 88 88 100 100 100 100 100 100 100 100 100 120 120 120 120 120 128 128 128 128 170 170 170 Greatest Overweight (x) 5 | 2 3 2 4 3 3 3 2 5 2 1 2 1 1 1 1 1 . . . . . . . . . . . . . . . . . . . . . 1 . . . Average Overweight (x) . | . 1 1 2 3 3 3 2 1 1 1 1 1 1 1 1 . . . . . . . . . . . . . . . . . . . . . . . . . . Largest Inventory Capacity 24 | 6 18 18 24 24 24 24 24 24 24 24 24 24 24 24 24 24 22 22 22 22 22 22 22 22 22 22 22 22 22 22 22 22 22 22 22 22 22 22 22 22 22 Average Capacity 22 | 5 12 18 24 24 24 24 24 24 24 24 24 24 24 24 24 22 22 22 22 22 22 22 22 22 22 22 22 22 22 22 22 22 22 22 21 22 22 21 22 22 22 Most Carried 24 | 1 18 18 24 24 24 24 24 24 24 24 24 24 24 24 24 24 22 22 22 22 22 22 22 22 22 22 22 22 22 22 22 22 22 22 22 22 22 22 22 22 22 Average Carried 21 | . 11 17 22 23 24 23 23 23 22 23 23 23 24 24 23 21 22 21 22 21 20 22 21 21 21 21 22 21 21 21 21 22 21 22 21 21 19 20 19 20 21 Final Capacity 24 | 6 18 18 24 24 24 24 24 24 24 24 24 24 24 24 24 22 22 22 22 22 22 22 22 22 22 22 22 22 22 22 22 22 22 22 22 22 22 22 22 22 22 Final Carried 24 | 1 18 18 24 24 24 24 24 24 23 24 24 24 24 24 23 22 22 22 22 21 22 22 22 22 22 22 22 22 22 22 22 22 22 22 22 22 20 20 21 22 22 Class Distribution -------------------- 41% | Hauler-Mutant 17% | Wizard-Mutant 13% | Machinist-Mutant 9% | Hacker-Mutant 6% | Mutant 4% | Alien-Mutant Dominant Class ---------------- Mutant | -10/Materials Mutant | -10/Mines Hauler-Mutant | -9/Materials Hauler-Mutant | -9/Mines Hauler-Mutant | -9/Exiles Hauler-Mutant | -8/Mines Hauler-Mutant | -8/Materials Hauler-Mutant | -8/Storage Hauler-Mutant | -7/Factory Hauler-Mutant | -7/Waste Hauler-Mutant | -7/Factory Hauler-Mutant | -7/Lower Caves Hauler-Mutant | -7/Lower Caves Hauler-Mutant | -7/Data Miner Hauler-Mutant | -6/Proximity Caves Hauler-Mutant | -6/Factory Machinist-Mutant | -6/Lower Caves Machinist-Mutant | -6/Lower Caves Machinist-Mutant | -6/Zion Machinist-Mutant | -5/Proximity Caves Hacker-Mutant | -5/Factory Hacker-Mutant | -5/Waste Machinist-Mutant | -5/Factory Machinist-Mutant | -5/Extension Machinist-Mutant | -5/Cetus Hacker-Mutant | -5/Archives Hacker-Mutant | -5/Hub_04(d) Wizard-Mutant | -4/Factory Wizard-Mutant | -4/Waste Wizard-Mutant | -4/Factory Wizard-Mutant | -4/Upper Caves Wizard-Mutant | -4/Upper Caves Wizard-Mutant | -4/Zhirov Wizard-Mutant | -3/Proximity Caves Wizard-Mutant | -3/Research Wizard-Mutant | -3/Quarantine Hacker-Mutant | -2/Research Hacker-Mutant | -2/Testing Machinist-Mutant | -2/Section 7 Wizard-Mutant | -1/Access Alien-Mutant | -1/Command Resources | -11 -10 -10 -9 -9 -9 -8 -8 -8 -7 -7 -7 -7 -7 -7 -6 -6 -6 -6 -6 -5 -5 -5 -5 -5 -5 -5 -5 -4 -4 -4 -4 -4 -4 -3 -3 -3 -2 -2 -2 -1 -1 ----------- Run | Scr Mat Min Mat Min Exi Min Mat Sto Fac Was Fac Low Low Dat Pro Fac Low Low Zio Pro Fac Was Fac Ext Cet Arc Hub Fac Was Fac Upp Upp Zhi Pro Res Qua Res Tes Sec Acc Com Matter Collected 19811 | 270 609 272 1231 87 . 167 132 650 378 172 477 183 145 . 30 350 140 86 13 55 108 . 77 110 206 78 60 . 70 70 75 . . 70 76 204 316 181 1454 5421 5788 Remotely . | . . . . . . . . . . . . . . . . . . . . . . . . . . . . . . . . . . . . . . . . . . Salvage Created 38536 | 63 805 339 2202 252 . 529 399 2387 1141 . 838 100 60 . 25 455 215 43 . 297 15 . . 357 269 196 54 . 1705 307 196 . . 270 429 447 1436 692 2947 8744 10322 Parts 1702 | . 59 28 153 11 . 40 23 136 62 . 35 6 2 . 2 22 6 5 . 9 . . . 11 15 17 5 . 37 14 7 . . 16 22 19 70 28 126 364 352 Haulers Intercepted 24 | . 2 . 5 . . . 1 5 . . 1 . . . . . . . . . . . . . . . . . . . . . . . . . . . 3 7 . Recyclers Shooed 21 | . . . 6 . . . . 1 . . . . . . . . . . . . . . . 1 . . . . . . . . . . . . 4 . 1 2 6 Parts Field Recycled . | . . . . . . . . . . . . . . . . . . . . . . . . . . . . . . . . . . . . . . . . . . Retrieved Matter . | . . . . . . . . . . . . . . . . . . . . . . . . . . . . . . . . . . . . . . . . . . Parts Self-Destructed 51 | . . . . . . . . . . . . . . . 5 . . 5 . 12 . . . . . . . . . . 7 3 . 19 . . . . . . . Prevented 21 | . . . . . . . . . . . . 6 . . . . 6 . . 9 . . . . . . . . . . . . . . . . . . . . . Kills | -11 -10 -10 -9 -9 -9 -8 -8 -8 -7 -7 -7 -7 -7 -7 -6 -6 -6 -6 -6 -5 -5 -5 -5 -5 -5 -5 -5 -4 -4 -4 -4 -4 -4 -3 -3 -3 -2 -2 -2 -1 -1 ------- Run | Scr Mat Min Mat Min Exi Min Mat Sto Fac Was Fac Low Low Dat Pro Fac Low Low Zio Pro Fac Was Fac Ext Cet Arc Hub Fac Was Fac Upp Upp Zhi Pro Res Qua Res Tes Sec Acc Com Combat Hostiles Destroyed 470 | . 17 11 39 3 . 12 11 35 19 . 10 1 . . 1 6 3 1 . 8 . . . 5 2 . 1 . 6 3 3 . . 4 6 4 20 9 28 84 118 Melee 5 | . . . . . . . . . 5 . . . . . . . . . . . . . . . . . . . . . . . . . . . . . . . . Guns 210 | . 15 8 26 1 . 1 . 18 6 . . . . . . . . . . . . . . . . . . . . . . . . . . . . . 25 42 68 Cannons 171 | . . . . 2 . 8 8 7 4 . 4 . . . 1 3 . 1 . 5 . . . 5 1 . 1 . 6 3 3 . . 4 2 1 3 8 3 39 49 AOE 59 | . 2 3 10 . . 3 3 8 2 . 4 . . . . 2 1 . . 1 . . . . . . . . . . . . . . 3 2 12 . . 3 . Classes Destroyed 29 | 1 7 . 3 1 . 1 . 1 1 . . 1 1 . . . . . . . . . . . . . . . 2 . . . . . . . . 1 2 1 6 Worker 42 | . 2 . 6 1 . . . 3 3 . 3 . . . . . . . . . 1 . . . . . . . . 1 . . . . . . 1 . 4 9 8 Builder 27 | . 2 1 2 . . 1 . 1 4 . 3 . . . . . . . . . . . . . . . . . . . . . . . . 1 2 . 1 9 . Tunneler 9 | . . . . . . 4 . . . . . . . . . . . . . . . . . . . . . . . . . . . . . . . . . 5 . Hauler 24 | . 2 . 5 . . . 1 5 . . 1 . . . . . . . . . . . . . . . . . . . . . . . . . . . 3 7 . Recycler 25 | 1 2 . 3 1 . . . 2 1 . 2 . . . . . . . . . . . . . . . . . . . . . . . . . 1 . . 7 5 Carrier 2 | . . . . . . . . . . . . . . . . . . . . . . . . . . . . . . . . . . . . . . . . 2 . Mechanic 4 | . . . 1 . . . . . . . . . . . . . . . . . . . . . . . . . . . . . . . . . . . . . 3 Operator 18 | . 2 . 3 . . . 2 2 . . . . . . . 1 . . . . . . . . . 5 . . 1 . . . . . 1 . . . . 1 . Watcher 45 | . 2 . 4 . . . . 2 1 . 3 . . . . 1 . . . . . . . . 1 . . . . 1 . . . . 2 3 6 1 3 11 4 Swarmer 100 | . 6 6 12 . . 4 6 8 3 . 3 . . . 1 . . . . 5 . . . . . . . . . . . . . 1 3 . 13 . 3 16 10 Saboteur 2 | . . . . . . . . . . . . . . . . . . . . . . . . . . . . . . . . . . . . . . 1 . . 1 Grunt 164 | . 11 5 16 1 . 7 3 14 9 . 3 . . . . 3 2 . . 3 . . . 2 . . . . . 2 1 . . . . 4 . 4 8 33 33 Brawler 12 | . . . . 1 . . . 1 . . . . . . . . 1 . . . . . . . . . . . . . . . . . . . . 1 . 3 5 Duelist 13 | . . . 1 1 . 1 . . 1 . . . . . . . . . . . . . . . . . . . . . . . . . . . . . . 3 6 Protector 4 | . . . . . . . . . . . . . . . . . . . . . . . . . . . . . . . . . . . . . . . . . 4 Researcher 3 | . . . . . . . . . . . . . . . . . . . . . . . . . . . . . . . . . . . . . . . 3 . . Sentry 43 | . . . 10 . . . 2 11 . . 1 . . . . 1 . . . . . . . 2 . . . . . 1 . . . 1 . . 2 . 6 3 3 Demolisher 3 | . . . . . . . . . . . . . . . . . . . . . . . . . . . . . . . . . . . . . . . . . 3 Specialist 1 | . . . . . . . . . . . . . . . . . . . . . . . . . . . . . . . . . . . . . . . . . 1 Hunter 41 | . . . . . . . . 1 . . 1 . . . . . . . . . . . . . . . . . . . . . . . . . 1 . 5 15 18 Programmer 58 | . . . . . . . . . 6 . 2 . . . . 2 . 1 . . . . . . . . 1 . . . 2 . . 2 3 . 4 3 1 11 20 Behemoth 4 | . . . . . . . . . . . . 1 . . . . . . . . . . . 1 . . . . . . . . . . . . . . . . 2 Compactor 6 | . . . . . . . . . . . . . . . . . . . . . . . . . . . . . 6 . . . . . . . . . . . . Cetus Guard 2 | . . . . . . . . . . . . . . . . . . . . . . . . . 2 . . . . . . . . . . . . . . . . S7 Guard 1 | . . . . . . . . . . . . . . . . . . . . . . . . . . . . . . . . . . . . . . . 1 . . M Guard 2 | . . . . . . . . . . . . . . . . . . . . . . . . . . . . . . . . . . . . . . . . . 2 Combat Programmer 2 | . . . . . . . . . . . . . . . . . . . . . . . . . . . . . . . . . . . . . . . . . 2 Striker 2 | . . . . . . . . . . . . . . . . . . . . . . . . . . . . . . . . . . . . . . . . . 2 Executioner 7 | . . . . . . . . . . . . . . . . . . . . . . . . . . . . . . . . . . . . . . . 4 . 3 Alpha 7 2 | . . . . . . . . . . . . . . . . . . . . . . . . . . . . . . . . . . . . . . . . . 2 Samaritan 1 | . . . . . . . . . . . . . 1 . . . . . . . . . . . . . . . . . . . . . . . . . . . . Assembled 4 | . . . . . . . . . . . . . . . . . . . . . . . . . . . . . . . . . . . . . . . . . 4 Golem 1 | . . . . . . . . . . . . . . . . . . . . . . . . . . . . . . . . . . . . . . . . . 1 Wasp 1 | . . . . . . . . . . . . . . . . . . . . . . . . . . . . . 1 . . . . . . . . . . . . Martyr 2 | . . . . . . . . . . . . . . . . . . . . . . . . . . . . . 2 . . . . . . . . . . . . Best Kill Streak 43 | 1 5 3 7 2 . 3 4 6 10 . 6 1 . . 1 3 3 1 . 5 1 . . 3 3 1 1 . 2 4 2 . . 2 3 3 10 4 9 15 43 Combat Bots Only 41 | . 3 3 4 2 . 3 3 6 5 . 4 1 . . 1 3 3 1 . 5 . . . 3 2 . 1 . 2 2 2 . . 2 3 3 8 4 6 9 41 Max Kills in Single Turn 5 | 1 2 2 3 1 . 2 2 3 3 . 2 1 1 . 1 2 1 1 . 1 1 . . 1 1 1 1 . 1 1 1 . . 1 2 1 3 1 2 4 5 Gunslinging 2 | . 1 1 1 . . . . . . . . . . . . . . . . . . . . . . . . . . . . . . . . . . . . . 2 Exploded 3 | . 1 2 2 . . 2 2 3 1 . 1 . . . . 2 1 . . 1 . . . . . . . . . . . . . . 2 1 3 . . 3 . Melee 1 | . . . . . . . . . 1 . . . . . . . . . . . . . . . . . . . . . . . . . . . . . . . . Uniques/NPCs Destroyed 3 | . . . . . . . . 1 . . . . . . . . . . . . . . . . 1 . . . . . . . . . . . . . . . 1 01-MTF (-8/Storage) A7 (-5/Cetus) MAIN.C Shell (-1/Command) MAIN.C (-1/Command) Combat | -11 -10 -10 -9 -9 -9 -8 -8 -8 -7 -7 -7 -7 -7 -7 -6 -6 -6 -6 -6 -5 -5 -5 -5 -5 -5 -5 -5 -4 -4 -4 -4 -4 -4 -3 -3 -3 -2 -2 -2 -1 -1 -------- Run | Scr Mat Min Mat Min Exi Min Mat Sto Fac Was Fac Low Low Dat Pro Fac Low Low Zio Pro Fac Was Fac Ext Cet Arc Hub Fac Was Fac Upp Upp Zhi Pro Res Qua Res Tes Sec Acc Com Damage Taken 21582 | . 530 253 1443 100 . 469 500 1594 1376 . 725 683 . . 14 118 175 74 . 289 . . . 125 62 . 102 . . 89 182 . . 306 440 408 2517 1154 1907 1645 4302 Core 2346 | . 71 51 138 22 . 88 45 177 138 . 120 81 . . . . 37 30 . 16 . . . 6 . . . . . . . . . 118 70 40 350 115 115 148 370 Absorbed by Shields 5097 | . . . . . . . . . . . . . . . . . . . . . . . . 52 59 . . . . . . . . . . . . . . 684 4302 Core Remaining (%) 70 | 100 . 51 . . . 38 . 59 . . . . . . 51 . . . . 90 . . . . . . 99 . . . . . . 89 . 85 . . 48 . 67 Volleys Fired 1828 | 5 64 27 143 13 . 37 47 119 46 . 58 10 3 . 5 16 9 6 . 25 7 . 1 25 22 11 7 24 36 38 17 7 . 18 46 51 118 59 143 205 360 Largest 3 | 2 2 2 2 2 . 2 2 2 2 . 2 2 2 . 2 2 1 1 . 1 1 . 1 2 2 2 2 1 2 2 2 2 . 2 2 2 2 2 2 2 3 Hottest 300 | 90 46 46 90 93 . 128 128 122 125 . 126 126 170 . 170 170 75 35 . 39 30 . 30 70 86 70 70 35 70 70 70 70 . 70 70 70 155 240 240 150 300 Shots Fired 3131 | 10 114 52 272 26 . 71 86 217 81 . 78 20 8 . 11 18 9 6 . 25 7 . 1 53 28 16 9 24 72 57 30 14 . 35 81 94 186 99 248 293 680 Gun 1528 | 10 111 50 261 18 . 11 . 122 49 . . . . . . . . . . . . . . . . . . . . . . . . . . . . . 154 182 560 Cannon 1450 | . . . . 8 . 57 84 81 27 . 64 7 8 . 11 9 3 6 . 21 . . . 53 5 10 9 24 72 57 30 14 . 35 78 87 172 99 89 111 119 Launcher 101 | . 3 2 11 . . 3 2 5 4 . 10 13 . . . 7 6 . . 4 . . . . 6 . . . . . . . . . 3 7 14 . . . 1 Special 52 | . . . . . . . . 9 1 . 4 . . . . 2 . . . . 7 . 1 . 17 6 . . . . . . . . . . . . 5 . . Kinetic 1038 | . 109 50 202 18 . 11 . . . . 19 . . . . . . . . . . . . . . . . . . . . . . . . . . . 154 259 216 Thermal 1250 | 10 2 . . 8 . 57 78 44 61 . 10 1 8 . 11 6 . 6 . 21 . . . 53 22 16 9 24 72 57 30 14 . 35 78 87 165 99 94 34 38 Explosive 26 | . 3 2 11 . . 3 2 . . . 5 . . . . . . . . . . . . . . . . . . . . . . . . . . . . . . Electromagnetic 377 | . . . 59 . . . 6 173 19 . 40 19 . . . 10 9 . . 4 . . . . 6 . . . . . . . . . 3 7 21 . . . 1 Slashing 425 | . . . . . . . . . . . . . . . . . . . . . . . . . . . . . . . . . . . . . . . . . 425 Robot Hit Streak 33 | 8 9 5 18 8 . 13 8 15 10 . 9 8 3 . 3 7 8 3 . 4 5 . 3 17 3 5 1 . 13 9 9 . . 4 5 13 17 24 19 31 33 Robot Miss Streak 8 | 1 5 3 4 3 . 4 6 7 4 . 3 2 1 . . 2 2 1 . 2 3 . . 4 3 3 . . 2 2 2 . . 2 3 3 5 2 4 8 7 Penetration Max 3 | . . . . . . . . . . . . . . . . . . . . . . . . . . . . . . . . . . . . . . . 3 3 3 Secondary Targets 22 | . 2 1 1 . . . . 1 1 . . . . . . . . . . . . . . . . . . . . . . . . . . . . . 1 . 15 Max Gunslinging Chain 2 | . 1 1 1 . . . . 1 1 . . . . . . . . . . . . . . . . . . . . . . . . . . . . . 1 . 2 Capacitor 116 | . . . . . . . . . . . . . . . . . . . . . . . . . . . . . . . . . . . . . 24 16 . . 76 Shots Hit Robots 1982 | 9 65 28 189 15 . 44 42 159 81 . 49 14 5 . 1 14 4 2 . 11 5 . 1 35 13 16 1 . 54 21 17 . . 14 24 21 75 42 150 196 565 Core Hits 1518 | 1 31 15 88 7 . 27 19 84 39 . 23 2 2 . 1 12 4 1 . 9 1 . . 11 15 8 1 . 23 8 5 . . 9 15 15 50 19 120 377 476 Critical Hits 707 | . . 1 2 . . 5 4 5 . . 1 . . . . . . . . . . . . 1 2 1 . . 1 . . . . . . 1 . . 103 308 272 Critical Kills 234 | . . 1 1 . . 1 1 1 . . . . . . . . . . . . . . . . . . . . . . . . . . . 1 . . 37 121 70 Critical Parts Destroyed 391 | . . . . . . 4 3 3 . . 1 . . . . . . . . . . . . 1 1 1 . . 1 . . . . . . . . . 57 177 142 Melee Attacks 167 | . . . . . . . . 10 45 . 16 . . . . 11 . 11 . . 51 13 2 . . 8 . . . . . . . . . . . . . . . Impact . | . . . . . . . . . . . . . . . . . . . . . . . . . . . . . . . . . . . . . . . . . . Slashing 167 | . . . . . . . . 10 45 . 16 . . . . 11 . 11 . . 51 13 2 . . 8 . . . . . . . . . . . . . . . Piercing . | . . . . . . . . . . . . . . . . . . . . . . . . . . . . . . . . . . . . . . . . . . Sneak Attacks 20 | . . . . . . . . 8 4 . 1 . . . . 1 . . . . 2 . . . . 4 . . . . . . . . . . . . . . . Combat Hostiles 1 | . . . . . . . . . 1 . . . . . . . . . . . . . . . . . . . . . . . . . . . . . . . . Follow-up Attacks . | . . . . . . . . . . . . . . . . . . . . . . . . . . . . . . . . . . . . . . . . . . Damage Inflicted 63470 | 105 1791 741 3929 275 . 1258 1211 4371 2896 . 2147 348 150 . 33 888 350 82 . 670 199 . . 1182 695 1009 40 . 2013 635 600 . . 435 1184 949 4046 1793 1991 4818 20636 Guns 28439 | 105 916 489 2844 148 . 117 . 1500 904 . . . . . . . . . . . . . . . . . . . . . . . . . . . . . 1263 2370 17783 Cannons 21674 | . . . . 127 . 945 1006 984 438 . 1112 94 150 . 33 240 72 82 . 299 . . . 1182 66 281 40 . 2013 635 600 . . 435 983 652 2580 1793 674 1441 2717 Explosions 10017 | . 875 252 1066 . . 196 205 1051 475 . 936 254 . . . 504 278 . . 371 . . . . 447 . . . . . . . . . 201 297 1466 . . 1007 136 Melee 2978 | . . . . . . . . 772 1079 . 99 . . . . 144 . . . . 199 . . . . 685 . . . . . . . . . . . . . . . Ramming 35 | . . . 19 . . . . . . . . . . . . . . . . . . . . . . . . . . . . . . . . . . . 16 . . Kinetic 11826 | . 905 489 2139 148 . 117 . . . . 156 . . . . . . . . . . . . . . . . . . . . . . . . . . . 1263 3432 3177 Thermal 20796 | 105 492 . 50 127 . 945 929 1213 1246 . 313 74 150 . 33 323 . 82 . 299 . . . 1182 433 324 40 . 2013 635 600 . . 435 983 652 2888 1793 712 379 1346 Explosive 3668 | . 394 252 1016 . . 196 205 . . . 488 . . . . . . . . . . . . . . . . . . . . . . . . . . . . 1007 110 Electromagnetic 8190 | . . . 705 . . . 77 2386 571 . 1091 274 . . . 421 350 . . 371 . . . . 262 . . . . . . . . . 201 297 1158 . . . 26 Impact . | . . . . . . . . . . . . . . . . . . . . . . . . . . . . . . . . . . . . . . . . . . Slashing 18955 | . . . . . . . . 772 1079 . 99 . . . . 144 . . . . 199 . . . . 685 . . . . . . . . . . . . . . 15977 Piercing . | . . . . . . . . . . . . . . . . . . . . . . . . . . . . . . . . . . . . . . . . . . Highest Corruption 15 | . 1 1 2 2 2 2 . 1 8 8 9 9 9 9 9 . . 1 1 . . 8 8 8 8 8 9 . . . 2 2 2 2 1 2 11 15 15 . . Average Corruption 4 | . 1 1 2 2 2 2 . 1 4 8 8 9 9 9 9 . . 1 1 . . 8 8 8 8 8 8 . . . 1 2 2 2 1 1 8 12 15 . . Corruption Purged . | . . . . . . . . . . . . . . . . . . . . . . . . . . . . . . . . . . . . . . . . . . Effects 423 | . . 5 11 14 4 16 . 8 37 17 58 25 14 4 26 . . 1 1 . . 3 11 25 12 10 14 . . . 2 3 . 2 9 1 33 57 . . . Message Errors 104 | . . 2 2 6 1 8 . 2 6 6 15 7 6 2 5 . . 1 1 . . 2 2 4 2 1 3 . . . . . . 1 3 . 7 9 . . . Matter Fused 71 | . . . . . . . . . 8 5 13 6 5 2 8 . . . . . . . 3 2 2 3 3 . . . . . . . . . 7 4 . . . Heat Flow Errors 48 | . . . 1 3 1 3 . . 8 1 7 4 . . 1 . . . . . . . 1 4 2 . 2 . . . . 1 . . . . 2 7 . . . Energy Discharges 46 | . . 1 2 4 . 3 . 1 5 2 6 3 . . 1 . . . . . . . 3 5 . . . . . . . 1 . . 2 1 2 4 . . . Parts Rejected 3 | . . . . . . . . . 1 . 1 . . . . . . . . . . . . . . 1 . . . . . . . . . . . . . . . Data Loss (minor) 46 | . . 2 4 1 2 2 . 1 4 3 3 1 . . 4 . . . . . . . 2 1 1 3 2 . . . 1 . . . 2 . 2 5 . . . Data Loss (major) 13 | . . . . . . . . . 1 . 1 1 . . 2 . . . . . . . . . . . 4 . . . . . . . . . 2 2 . . . Misfires 20 | . . . . . . . . . 2 . 4 1 2 . 1 . . . . . . . . 4 1 . . . . . . . . . . . 2 3 . . . Alerts 2 | . . . . . . . . . . . . . . . . . . . . . . . . . . . . . . . . . . . . . . 2 . . . Misdirections 12 | . . . . . . . . . . . . . . . . . . . . . . . . . . . . . . . . . . . . . . 12 . . . Targeting Errors 50 | . . . 2 . . . . 4 2 . 7 2 1 . 4 . . . . . . 1 . 4 4 2 . . . . 1 1 . . 1 . 5 9 . . . Weapon Failures 8 | . . . . . . . . . . . 1 . . . . . . . . . . . . 1 . . . . . . . . . 1 1 . 4 . . . . Overload Shots . | . . . . . . . . . . . . . . . . . . . . . . . . . . . . . . . . . . . . . . . . . . Overflow Damage 1913 | . 305 6 16 17 . . 42 85 315 . 185 . . . . 104 19 . . 10 51 . . 26 . 225 . . 11 13 25 . . . 45 28 144 54 . 164 23 Projectiles 606 | . . . . 17 . . 25 30 27 . 39 . . . . . 19 . . 10 . . . 26 . 22 . . 11 13 25 . . . 45 28 140 54 . 52 23 Explosions 709 | . 305 6 16 . . . 17 55 84 . 107 . . . . 3 . . . . . . . . . . . . . . . . . . . . 4 . . 112 . Melee 598 | . . . . . . . . . 204 . 39 . . . . 101 . . . . 51 . . . . 203 . . . . . . . . . . . . . . . Knockbacks 100 | . . . . . . . . . . . 3 . . . . . . . . . . . . . . . . . . . . . . . . . . . . 36 61 Impact . | . . . . . . . . . . . . . . . . . . . . . . . . . . . . . . . . . . . . . . . . . . Kinetic 97 | . . . . . . . . . . . 3 . . . . . . . . . . . . . . . . . . . . . . . . . . . . 34 60 Secondary 3 | . . . . . . . . . . . . . . . . . . . . . . . . . . . . . . . . . . . . . . . . 2 1 Self-Inflicted Damage 652 | . 194 . 45 . . 32 . 186 85 . 43 24 . . . 11 6 . . . . . . . . . . . . . . . . . . 13 5 . 8 . . Shots 20 | . 2 . 1 . . 1 . 6 2 . 2 1 . . . 1 1 . . . . . . . . . . . . . . . . . . 1 2 . . . . Rammed 3 | . . . 2 . . . . . . . . . . . . . . . . . . . . . . . . . . . . . . . . . . . 1 . . Targets Rammed 3 | . . . 2 . . . . . . . . . . . . . . . . . . . . . . . . . . . . . . . . . . . 1 . . Kicked . | . . . . . . . . . . . . . . . . . . . . . . . . . . . . . . . . . . . . . . . . . . Crushed . | . . . . . . . . . . . . . . . . . . . . . . . . . . . . . . . . . . . . . . . . . . Highest Temperature 372 | 150 66 41 231 217 267 284 63 60 261 108 241 189 12 . 126 18 . . . . . . 254 233 256 . 131 . . . 48 278 . 144 75 54 258 286 . 123 372 Average Temperature 53 | 78 14 10 40 65 140 82 32 14 89 55 67 61 8 . 30 10 . . . . . . 131 100 131 . 67 . . . 17 88 . 37 22 14 54 53 . 66 108 Received Heat Transfer 2956 | . 162 87 510 30 . 171 162 504 333 . 45 96 . . . 27 81 . . 90 . . . 8 4 . . . . 30 12 . . . . 93 72 162 117 64 96 Effects 3 | . . . 1 . . 1 . . . . . . . . . . . . . . . . . . . . . . . . . . . . . . . . . . 1 Energy Bleed 2 | . . . 1 . . 1 . . . . . . . . . . . . . . . . . . . . . . . . . . . . . . . . . . . Interference 1 | . . . . . . . . . . . . . . . . . . . . . . . . . . . . . . . . . . . . . . . . . 1 Siege Activations . | . . . . . . . . . . . . . . . . . . . . . . . . . . . . . . . . . . . . . . . . . . Robots Corrupted 20 | . . . 3 . . . . 2 2 . 3 1 . . . 1 2 . . 2 . . . . 1 . . . . . . . . . . 1 2 . . . . Combat Hostiles 18 | . . . 3 . . . . 2 1 . 2 1 . . . 1 2 . . 2 . . . . 1 . . . . . . . . . . 1 2 . . . . Parts Fried 71 | . . . 8 . . . . 21 5 . 13 3 . . . . 4 . . 2 . . . . . . . . . . . . . . 3 6 6 . . . . Impact Corruptions . | . . . . . . . . . . . . . . . . . . . . . . . . . . . . . . . . . . . . . . . . . . Robots Melted 9 | 1 . . . . . . . . 1 . . . . . . . . . . . . . . . 1 . . . . . . . . . 1 . 3 1 . . 1 Combat Hostiles 7 | . . . . . . . . . 1 . . . . . . . . . . . . . . . . . . . . . . . . . 1 . 3 1 . . 1 Parts Melted 68 | 1 1 . . . . 1 2 1 5 . 2 . . . . . . . . 3 . . . 2 9 . . . . 1 2 . . 4 5 2 14 11 1 1 . Heat Transferred 27716 | 285 325 . 150 222 . 1628 1591 1899 1902 . 385 50 250 . 50 324 . 100 . 450 . . . 1650 545 598 50 . 3050 950 800 . . 600 1300 1000 3446 1990 814 333 979 Parts Sabotaged 1 | . . . . . . . . . . . . . . . . . . . . . . . . . . . . . . . . . . . . . . . . . 1 Parts Stolen . | . . . . . . . . . . . . . . . . . . . . . . . . . . . . . . . . . . . . . . . . . . Parts Stripped . | . . . . . . . . . . . . . . . . . . . . . . . . . . . . . . . . . . . . . . . . . . Power Chain Reactions 26 | . . . 1 . . . . 11 4 . 1 1 . . . 1 . . . . 1 . . . 1 . . . . . . . . . . . 5 . . . . Missiles Intercepted . | . . . . . . . . . . . . . . . . . . . . . . . . . . . . . . . . . . . . . . . . . . Alert | -11 -10 -10 -9 -9 -9 -8 -8 -8 -7 -7 -7 -7 -7 -7 -6 -6 -6 -6 -6 -5 -5 -5 -5 -5 -5 -5 -5 -4 -4 -4 -4 -4 -4 -3 -3 -3 -2 -2 -2 -1 -1 ------- Run | Scr Mat Min Mat Min Exi Min Mat Sto Fac Was Fac Low Low Dat Pro Fac Low Low Zio Pro Fac Was Fac Ext Cet Arc Hub Fac Was Fac Upp Upp Zhi Pro Res Qua Res Tes Sec Acc Com Peak Influence 1633 | 5 423 232 705 359 . 220 300 457 272 37 646 . . . . 583 . . . . 428 12 436 393 353 214 643 400 146 534 . . . . 400 180 1100 633 526 1219 1633 Average Influence 262 | 2 254 66 370 111 . 61 140 274 88 28 234 . . . . 163 . . . . 109 8 295 163 142 178 334 153 135 162 . . . . 78 64 652 308 230 586 1196 Maximum Alert Level 5 | . 2 1 3 1 . 1 1 2 1 . 2 . . . . 2 . . . . 2 . 2 1 1 1 2 2 . 2 . . . . 2 . 4 2 2 4 5 Low Security (%) 54 | 100 23 94 20 78 . 88 67 33 95 100 55 . . . . 64 . . . . 85 100 27 72 74 67 32 54 100 77 . . . . 97 100 21 35 52 6 . Level 1 22 | . 67 5 37 21 . 11 32 56 4 . 13 . . . . 29 . . . . 6 . 15 27 25 32 26 43 . 20 . . . . . . 19 16 27 25 . Level 2 12 | . 8 . 40 . . . . 9 . . 31 . . . . 5 . . . . 8 . 57 . . . 41 2 . 2 . . . . 2 . 9 47 19 36 . Level 3 5 | . . . 1 . . . . . . . . . . . . . . . . . . . . . . . . . . . . . . . . . 44 . . 23 24 Level 4 2 | . . . . . . . . . . . . . . . . . . . . . . . . . . . . . . . . . . . . . 6 . . 7 33 Level 5 2 | . . . . . . . . . . . . . . . . . . . . . . . . . . . . . . . . . . . . . . . . . 41 High Security . | . . . . . . . . . . . . . . . . . . . . . . . . . . . . . . . . . . . . . . . . . . Max Security . | . . . . . . . . . . . . . . . . . . . . . . . . . . . . . . . . . . . . . . . . . . Squads Dispatched 117 | . 5 . 4 . . . 2 6 15 . 3 . . . . 7 . . . 1 4 . 1 . . . 6 2 . 2 . . . . 3 4 6 3 7 27 9 Investigation 33 | . 3 . 2 . . . . 2 5 . 1 . . . . 3 . . . 1 2 . 1 . . . . 1 . . . . . . . . 2 . 2 7 1 Extermination 33 | . . . . . . . . . 5 . 2 . . . . 2 . . . . 2 . . . . . 1 1 . 1 . . . . 3 2 2 2 3 4 3 Reinforcement 27 | . 2 . 2 . . . 2 4 3 . . . . . . 2 . . . . . . . . . . 4 . . . . . . . . 2 1 . 2 3 . Assault 11 | . . . . . . . . . 1 . . . . . . . . . . . . . . . . . . . . . . . . . . . 1 1 . 3 5 Garrison 13 | . . . . . . . . . 1 . . . . . . . . . . . . . . . . . 1 . . 1 . . . . . . . . . 10 . Intercept . | . . . . . . . . . . . . . . . . . . . . . . . . . . . . . . . . . . . . . . . . . . Construction Impeded 10 | . . . . . . . . 3 2 . . . . . . 1 . . . . . . . . . . 1 . . . . . . . . 1 1 . 1 . . Haulers Reinforced 4 | . . . . . . . . . . . . . . . . . . . . . . . . . . . 1 . . . . . . . . . . . . 3 . Stealth | -11 -10 -10 -9 -9 -9 -8 -8 -8 -7 -7 -7 -7 -7 -7 -6 -6 -6 -6 -6 -5 -5 -5 -5 -5 -5 -5 -5 -4 -4 -4 -4 -4 -4 -3 -3 -3 -2 -2 -2 -1 -1 --------- Run | Scr Mat Min Mat Min Exi Min Mat Sto Fac Was Fac Low Low Dat Pro Fac Low Low Zio Pro Fac Was Fac Ext Cet Arc Hub Fac Was Fac Upp Upp Zhi Pro Res Qua Res Tes Sec Acc Com Distress Signals 50 | . 1 . 4 . . . . 1 . . 1 . . . . 1 . . . . . . . 2 1 . 4 . . 2 . . . . 1 . 1 2 1 7 21 Communications Jammed . | . . . . . . . . . . . . . . . . . . . . . . . . . . . . . . . . . . . . . . . . . . Distress Signals . | . . . . . . . . . . . . . . . . . . . . . . . . . . . . . . . . . . . . . . . . . . Times Spotted 732 | . 26 11 58 4 . 19 22 43 25 . 22 2 . . 5 14 6 1 . 10 2 3 4 20 4 13 3 3 6 7 3 . . 4 17 20 35 25 49 85 161 Peak Tracking Total 24 | . 3 3 6 2 . 4 4 4 5 . 3 1 . . 3 4 3 1 . 5 2 3 2 5 5 1 1 1 3 2 2 . . 3 5 6 7 6 5 8 24 Tactical Retreats 63 | . 1 . 2 1 . 3 7 1 2 . 1 1 . . . 1 1 . . . 1 . . 2 . . . . . . . . . . . 2 1 6 9 12 9 Traps | -11 -10 -10 -9 -9 -9 -8 -8 -8 -7 -7 -7 -7 -7 -7 -6 -6 -6 -6 -6 -5 -5 -5 -5 -5 -5 -5 -5 -4 -4 -4 -4 -4 -4 -3 -3 -3 -2 -2 -2 -1 -1 ------- Run | Scr Mat Min Mat Min Exi Min Mat Sto Fac Was Fac Low Low Dat Pro Fac Low Low Zio Pro Fac Was Fac Ext Cet Arc Hub Fac Was Fac Upp Upp Zhi Pro Res Qua Res Tes Sec Acc Com Traps Triggered 40 | . 3 . 1 . . . . 3 3 . 1 . . . . 2 . . . . 2 . 1 . . . . 1 . . . . . . 1 1 4 . . 2 15 Indirectly . | . . . . . . . . . . . . . . . . . . . . . . . . . . . . . . . . . . . . . . . . . . Trap Hack Attempts . | . . . . . . . . . . . . . . . . . . . . . . . . . . . . . . . . . . . . . . . . . . Triggered . | . . . . . . . . . . . . . . . . . . . . . . . . . . . . . . . . . . . . . . . . . . Disarmed 4 | . . . . . . . . . . . . . . . . . . . . . . . . . . . . . . . . . . . . . 4 . . . . Reprogrammed . | . . . . . . . . . . . . . . . . . . . . . . . . . . . . . . . . . . . . . . . . . . Reused . | . . . . . . . . . . . . . . . . . . . . . . . . . . . . . . . . . . . . . . . . . . Traps Extracted . | . . . . . . . . . . . . . . . . . . . . . . . . . . . . . . . . . . . . . . . . . . Installed . | . . . . . . . . . . . . . . . . . . . . . . . . . . . . . . . . . . . . . . . . . . Triggered 6 | . . . . . . . . . . . . . . . 5 . 1 . . . . . . . . . . . . . . . . . . . . . . . . Machines | -11 -10 -10 -9 -9 -9 -8 -8 -8 -7 -7 -7 -7 -7 -7 -6 -6 -6 -6 -6 -5 -5 -5 -5 -5 -5 -5 -5 -4 -4 -4 -4 -4 -4 -3 -3 -3 -2 -2 -2 -1 -1 ---------- Run | Scr Mat Min Mat Min Exi Min Mat Sto Fac Was Fac Low Low Dat Pro Fac Low Low Zio Pro Fac Was Fac Ext Cet Arc Hub Fac Was Fac Upp Upp Zhi Pro Res Qua Res Tes Sec Acc Com Machines Disabled 68 | . 5 . 3 . . 1 2 8 1 . 2 . . . . 1 . . . . . . . 3 1 2 2 . . 1 . . . . . 7 6 8 7 3 5 Max in Single Turn 5 | . 5 . 1 . . 1 1 1 1 . 1 . . . . 1 . . . . . . . 1 . . 1 . . 1 . . . . . 1 2 1 1 2 2 Garrison Access 14 | . . . . . . . . 1 1 . 1 . . . . 1 . . . . . . 1 . . . 1 1 . 2 . . . . 1 1 . 1 1 1 . Phase Generator 1 | . . . . . . . . . . . . . . . . . . . . . . . . . . . . . . . . . . . . . . . . . 1 Network Hub 1 | . . . . . . . . . . . . . . . . . . . . . . . . . . . 1 . . . . . . . . . . . . . . Machines Sabotaged . | . . . . . . . . . . . . . . . . . . . . . . . . . . . . . . . . . . . . . . . . . . Garrisons Compromised . | . . . . . . . . . . . . . . . . . . . . . . . . . . . . . . . . . . . . . . . . . . Overloaded Fab Kills . | . . . . . . . . . . . . . . . . . . . . . . . . . . . . . . . . . . . . . . . . . . Fab Network Shutdowns 9 | . . . . . . . . . . . 1 . . . . 1 . . . . 1 . 1 . . . . 1 . 1 . . . . 1 . 1 1 . . . Hacking | -11 -10 -10 -9 -9 -9 -8 -8 -8 -7 -7 -7 -7 -7 -7 -6 -6 -6 -6 -6 -5 -5 -5 -5 -5 -5 -5 -5 -4 -4 -4 -4 -4 -4 -3 -3 -3 -2 -2 -2 -1 -1 --------- Run | Scr Mat Min Mat Min Exi Min Mat Sto Fac Was Fac Low Low Dat Pro Fac Low Low Zio Pro Fac Was Fac Ext Cet Arc Hub Fac Was Fac Upp Upp Zhi Pro Res Qua Res Tes Sec Acc Com Machines Accessed 202 | . 5 . 11 . 1 . 2 16 9 . 7 2 2 4 . 9 . 2 . 1 12 . 5 15 2 . 3 5 . 10 . . 4 . 10 12 8 11 11 16 7 Terminals 139 | . 4 . 9 . . . 2 13 6 . 4 . . . . 4 . . . 1 9 . 3 15 2 . 2 3 . 7 . . . . 5 9 7 7 9 11 7 Fabricators 17 | . . . . . . . . . 2 . 1 . . . . 3 . . . . 2 . 1 . . . . 1 . 1 . . . . 2 . 1 1 . 2 . Repair Stations 10 | . . . . . . . . 2 . . . . . . . 1 . . . . 1 . . . . . . . . . . . . . 1 1 . 2 1 1 . Recycling Units 3 | . 1 . 1 . . . . . . . . . . . . . . . . . . . . . . . . . . . . . . . . . . . . 1 . Scanalyzers 3 | . . . 1 . . . . . . . 1 . . . . . . . . . . . . . . . . . . . . . . . . 1 . . . . . Garrison Access 15 | . . . . . . . . 1 1 . 1 . . . . 1 . . . . . . 1 . . . 1 1 . 2 . . . . 2 1 . 1 1 1 . Total Hacks 760 | . 15 . 33 . 4 . 7 50 25 . 22 2 2 29 . 33 . 2 . 8 41 . 16 35 10 . 6 25 . 46 . . 17 . 50 45 48 43 35 71 40 Successful 528 | . 11 . 15 . 4 . 3 31 9 . 15 2 2 29 . 17 . 2 . 6 24 . 13 30 10 . 5 19 . 36 . . 17 . 40 37 26 37 22 43 23 Failed 231 | . 4 . 18 . . . 4 19 16 . 7 . . . . 16 . . . 2 17 . 3 5 . . 1 6 . 10 . . . . 10 8 22 6 13 27 17 Catastrophic 29 | . 1 . . . . . . . 3 . . . . . . 1 . . . 1 3 . . . . . . 2 . . . . . . . 1 3 . 6 3 5 Database Lockouts 2 | . . . . . . . . . . . . . . . . . . . . . . . . . . . . . . . . . . . . . . . . 2 . Manual 507 | . 14 . 30 . . . 4 29 13 . 14 . . . . 21 . . . 7 26 . 12 34 7 . 4 19 . 34 . . . . 32 32 37 31 25 47 35 Terminals 527 | . 14 . 30 . . . 7 41 18 . 16 . . . . 12 . . . 8 27 . 11 35 10 . 4 15 . 36 . . . . 28 32 38 29 29 47 40 Fabricators 101 | . . . . . . . . . 5 . 2 . . . . 18 . . . . 13 . 4 . . . . 9 . 8 . . . . 18 . 10 7 . 7 . Repair Stations 44 | . . . . . . . . 8 . . . . . . . 2 . . . . 1 . . . . . . . . . . . . . 2 7 . 6 4 14 . Recycling Units 4 | . 1 . 1 . . . . . . . . . . . . . . . . . . . . . . . . . . . . . . . . . . . . 2 . Scanalyzers 9 | . . . 2 . . . . . . . 2 . . . . . . . . . . . . . . . . . . . . . . . . 5 . . . . . Garrison Access 19 | . . . . . . . . 1 2 . 2 . . . . 1 . . . . . . 1 . . . 2 1 . 2 . . . . 2 1 . 1 2 1 . Terminal Hacks 284 | . 5 . 5 . 4 . 1 15 5 . 7 2 2 29 . 3 . 2 . 6 9 . 6 14 9 . 2 7 . 19 . . 17 . 15 19 15 16 13 20 17 Record 26 | . . . . . 4 . . . . . . . 1 11 . . . . . 1 . . . . 4 . . . . . . . 5 . . . . . . . . Part Schematic 38 | . . . . . . . . 1 . . 1 . . 9 . 1 . . . 5 . . . 5 . . . 2 . 3 . . 4 . 1 1 1 2 . 2 . Robot Schematic 6 | . . . . . . . . . . . . . . 6 . . . . . . . . . . . . . . . . . . . . . . . . . . . Robot Analysis 5 | . . . 1 . . . . . . . . . . . . . . . . . . . . . . . . . . . . . 4 . . . . . . . . Prototype ID Bank 7 | . . . . . . . . . . . . . . 3 . . . . . . . . . . . . . . . . . . 4 . . . . . . . . Open Door 12 | . . . . . . . . 3 . . . 2 1 . . . . 2 . . . . . . . . . . . . . . . . . . . . 3 . 1 Level Access Points 3 | . . . . . . . . . . . . . . . . . . . . . . . . . . . 1 . . . . . . . . 1 . . 1 . . Branch Access Points 9 | . . . . . . . 1 . . . 1 . . . . . . . . . 1 . 1 . . . . 1 . 1 . . . . 1 . 1 . . 1 . Machine Index 2 | . . . . . . . . . . . . . . . . . . . . . . . . . . . . . . . . . . . . . . . 1 . 1 Terminal Index 14 | . 1 . . . . . . 1 1 . 1 . . . . 1 . . . . 1 . 1 . . . 1 1 . 1 . . . . . 1 1 1 . 1 . Fabricator Index 11 | . . . . . . . . . 1 . 1 . . . . 1 . . . . 1 . 1 . . . . 1 . 1 . . . . 1 . 1 1 . 1 . Repair Station Index 4 | . . . . . . . . . . . . . . . . . . . . . 1 . . . . . . . . 1 . . . . . . 1 1 . . . Scanalyzer Index 1 | . . . . . . . . . . . . . . . . . . . . . . . . . . . . . . . . . . . . . . . . 1 . Garrison Index 4 | . . . . . . . . . . . . . . . . . . . . . . . . . . . . . . 1 . . . . 1 1 . . . 1 . Alert Level 53 | . 2 . 1 . . . . 3 . . 2 . . . . . . . . . 2 . 2 7 2 . . 1 . 5 . . . . 4 5 1 5 2 3 6 Unreport Threat 43 | . . . . . . . . 2 2 . . . . . . . . . . . 2 . 1 2 3 . . . . 3 . . . . 4 . 5 1 3 8 7 Disarm Traps 1 | . . . . . . . . . . . . . . . . . . . . . . . . . . . . . . . . . . . . . 1 . . . . Transport Status 1 | . . . . . . . . . . . . . . . . . . . . . . . . . . . . . . 1 . . . . . . . . . . . Recall Investigation 3 | . . . . . . . . 1 . . . . . . . . . . . . . . . . . . . . . . . . . . . . . . . 2 . Recall Extermination 10 | . . . . . . . . . . . . . . . . . . . . . 1 . . . . . . 1 . . . . . . 2 2 . 1 2 . 1 Recall Reinforcements 1 | . . . . . . . . 1 . . . . . . . . . . . . . . . . . . . . . . . . . . . . . . . . . Recall Assault 1 | . . . . . . . . . 1 . . . . . . . . . . . . . . . . . . . . . . . . . . . . . . . . Hauler Manifests 1 | . . . . . . . . . . . . . . . . . . . . . . . . . . . . . . 1 . . . . . . . . . . . Registered Components 1 | . . . 1 . . . . . . . . . . . . . . . . . . . . . . . . . . . . . . . . . . . . . . Zone Layout 26 | . 2 . 2 . . . . 3 . . 1 . . . . . . . . . . . . . . . . . . 1 . . . . 1 8 3 4 1 . . Disengage Seal 1 | . . . . . . . . . . . . . . . . . . . . . . . . . . . . . . . . . . . . . . . . . 1 Fabricator Hacks 55 | . . . . . . . . . 3 . 2 . . . . 6 . . . . 6 . 2 . . . . 5 . 5 . . . . 12 . 6 4 . 4 . Load Schematic 24 | . . . . . . . . . 1 . 1 . . . . 3 . . . . 3 . 1 . . . . 1 . 2 . . . . 5 . 3 2 . 2 . Build 31 | . . . . . . . . . 2 . 1 . . . . 3 . . . . 3 . 1 . . . . 4 . 3 . . . . 7 . 3 2 . 2 . Repair Station Hacks 39 | . . . . . . . . 7 . . . . . . . 2 . . . . . . . . . . . . . . . . . . 2 6 . 6 4 12 . Scan Component 20 | . . . . . . . . 4 . . . . . . . 1 . . . . . . . . . . . . . . . . . . 1 3 . 3 2 6 . Repair 19 | . . . . . . . . 3 . . . . . . . 1 . . . . . . . . . . . . . . . . . . 1 3 . 3 2 6 . Recycling Unit Hacks 2 | . . . . . . . . . . . . . . . . . . . . . . . . . . . . . . . . . . . . . . . . 2 . Retrieve Matter 1 | . . . . . . . . . . . . . . . . . . . . . . . . . . . . . . . . . . . . . . . . 1 . Retrieve Components 1 | . . . . . . . . . . . . . . . . . . . . . . . . . . . . . . . . . . . . . . . . 1 . Scanalyzer 8 | . . . 2 . . . . . . . 2 . . . . . . . . . . . . . . . . . . . . . . . . 4 . . . . . Insert Component 6 | . . . 1 . . . . . . . 1 . . . . . . . . . . . . . . . . . . . . . . . . 4 . . . . . Analyze 2 | . . . 1 . . . . . . . 1 . . . . . . . . . . . . . . . . . . . . . . . . . . . . . . Garrison Access Hacks 13 | . . . . . . . . 1 . . 1 . . . . 1 . . . . . . 1 . . . 1 1 . 2 . . . . 1 1 . 1 1 1 . Seal Access 13 | . . . . . . . . 1 . . 1 . . . . 1 . . . . . . 1 . . . 1 1 . 2 . . . . 1 1 . 1 1 1 . Unauthorized Hacks 127 | . 6 . 8 . . . 2 8 1 . 3 . . . . 5 . . . . 9 . 4 16 1 . 2 6 . 10 . . . . 10 7 5 10 4 4 6 Terminals 98 | . 5 . 7 . . . 2 8 1 . 3 . . . . 1 . . . . 6 . 3 16 1 . 2 3 . 7 . . . . 4 7 3 8 3 2 6 Track 4 | . 1 . . . . . . . . . 1 . . . . . . . . . . . . . . . . . . . . . . . . . . . . . 2 Assimilate 17 | . . . . . . . . 1 1 . . . . . . . . . . . 1 . 1 3 . . 1 2 . 1 . . . . 1 1 . 2 . 2 . Botnet 68 | . 4 . 6 . . . 2 7 . . 2 . . . . 1 . . . . 5 . 1 10 1 . 1 1 . 5 . . . . 3 5 3 5 3 . 3 Detonate 1 | . . . . . . . . . . . . . . . . . . . . . . . . 1 . . . . . . . . . . . . . . . . . Disrupt 1 | . . . . . . . . . . . . . . . . . . . . . . . . 1 . . . . . . . . . . . . . . . . . Operators 7 | . . . 1 . . . . . . . . . . . . . . . . . . . 1 1 . . . . . 1 . . . . . 1 . 1 . . 1 Fabricators 25 | . . . . . . . . . . . . . . . . 4 . . . . 3 . 1 . . . . 3 . 3 . . . . 5 . 2 2 . 2 . Report 3 | . . . . . . . . . . . . . . . . . . . . . . . . . . . . 1 . 1 . . . . 1 . . . . . . Prioritize 10 | . . . . . . . . . . . . . . . . 2 . . . . 1 . . . . . . 1 . 1 . . . . 2 . 1 1 . 1 . Siphon 11 | . . . . . . . . . . . . . . . . 2 . . . . 1 . 1 . . . . 1 . 1 . . . . 2 . 1 1 . 1 . Overload 1 | . . . . . . . . . . . . . . . . . . . . . 1 . . . . . . . . . . . . . . . . . . . . Repair Stations . | . . . . . . . . . . . . . . . . . . . . . . . . . . . . . . . . . . . . . . . . . . Recycling Units 2 | . 1 . 1 . . . . . . . . . . . . . . . . . . . . . . . . . . . . . . . . . . . . . . Tunnel 2 | . 1 . 1 . . . . . . . . . . . . . . . . . . . . . . . . . . . . . . . . . . . . . . Scanalyzers . | . . . . . . . . . . . . . . . . . . . . . . . . . . . . . . . . . . . . . . . . . . Garrison Access 2 | . . . . . . . . . . . . . . . . . . . . . . . . . . . . . . . . . . . 1 . . . 1 . . Reprogram 2 | . . . . . . . . . . . . . . . . . . . . . . . . . . . . . . . . . . . 1 . . . 1 . . Data Cores Recovered 3 | . . . 1 . . . . 1 . . . . . . . . . . . . . . . . . . . . . . . . . . . . . . . 1 . Used 1 | . . . . . . . . . . . . . . . . . . . . . . . . . . . . . . . . . . . . . . . . 1 . Hacking Detections 142 | . 4 . 10 . . . 2 12 9 . 7 . . . . 8 . . . 1 10 . 3 9 3 . 2 4 . 4 . . . . 7 6 8 5 7 15 6 Full Trace Events 19 | . . . . . . . . 1 5 . . . . . . 2 . . . 1 1 . 1 . . . . 1 . . . . . . . . 1 . 2 4 . Feedback Events 9 | . . . . . . . . 1 4 . . . . . . . . . . . 1 . . . . . . . . . . . . . . . . . . 3 . Corruption 7 | . . . . . . . . 1 4 . . . . . . . . . . . . . . . . . . . . . . . . . . . . . . 2 . Hackware Fried 2 | . . . . . . . . . . . . . . . . . . . . . 1 . . . . . . . . . . . . . . . . . . 1 . Feedback Blocked . | . . . . . . . . . . . . . . . . . . . . . . . . . . . . . . . . . . . . . . . . . . Robot Schematics Acquired 6 | . . . . . . . . . . . . . . 6 . . . . . . . . . . . . . . . . . . . . . . . . . . . Robots Built . | . . . . . . . . . . . . . . . . . . . . . . . . . . . . . . . . . . . . . . . . . . Matter . | . . . . . . . . . . . . . . . . . . . . . . . . . . . . . . . . . . . . . . . . . . Time . | . . . . . . . . . . . . . . . . . . . . . . . . . . . . . . . . . . . . . . . . . . Total Robot Build Rating . | . . . . . . . . . . . . . . . . . . . . . . . . . . . . . . . . . . . . . . . . . . Part Schematics Acquired 40 | . . . 1 . . . . 1 . . 2 . . 9 . 1 . . . 5 . . . 5 . . . 2 . 3 . . 4 . 1 1 1 2 . 2 . Parts Built 40 | . . . . . . . . . 3 . 2 . . . . 4 . . . . 5 . 1 . . . . 3 . 5 . . . . 8 . 4 3 . 2 . Matter 7316 | . . . . . . . . . 380 . 190 . . . . 621 . . . . 584 . 285 . . . . 877 . 623 . . . . 1526 . 855 541 . 834 . Time 1815 | . . . . . . . . . 131 . 47 . . . . 320 . . . . 235 . 76 . . . . 185 . 125 . . . . 274 . 122 115 . 185 . Total Part Build Rating 275 | . . . . . . . . . 17 . 10 . . . . 18 . . . . 29 . 5 . . . . 21 . 39 . . . . 60 . 33 25 . 18 . Parts Repaired 19 | . . . . . . . . 3 . . . . . . . 1 . . . . . . . . . . . . . . . . . . 1 3 . 3 2 6 . Time 757 | . . . . . . . . 126 . . . . . . . 49 . . . . . . . . . . . . . . . . . . 13 83 . 192 60 234 . Parts Recycled . | . . . . . . . . . . . . . . . . . . . . . . . . . . . . . . . . . . . . . . . . . . Recycled Matter . | . . . . . . . . . . . . . . . . . . . . . . . . . . . . . . . . . . . . . . . . . . Retrieved Matter . | . . . . . . . . . . . . . . . . . . . . . . . . . . . . . . . . . . . . . . . . . . Retrieved Components . | . . . . . . . . . . . . . . . . . . . . . . . . . . . . . . . . . . . . . . . . . . Parts Scanalyzed 2 | . . . 1 . . . . . . . 1 . . . . . . . . . . . . . . . . . . . . . . . . . . . . . . Part Schematics Acquired 2 | . . . 1 . . . . . . . 1 . . . . . . . . . . . . . . . . . . . . . . . . . . . . . . Parts Damaged . | . . . . . . . . . . . . . . . . . . . . . . . . . . . . . . . . . . . . . . . . . . Bothacking | -11 -10 -10 -9 -9 -9 -8 -8 -8 -7 -7 -7 -7 -7 -7 -6 -6 -6 -6 -6 -5 -5 -5 -5 -5 -5 -5 -5 -4 -4 -4 -4 -4 -4 -3 -3 -3 -2 -2 -2 -1 -1 ------------ Run | Scr Mat Min Mat Min Exi Min Mat Sto Fac Was Fac Low Low Dat Pro Fac Low Low Zio Pro Fac Was Fac Ext Cet Arc Hub Fac Was Fac Upp Upp Zhi Pro Res Qua Res Tes Sec Acc Com Used RIF Installer . | . . . . . . . . . . . . . . . . . . . . . . . . . . . . . . . . . . . . . . . . . . Robots Hacked 4 | . . . . . . . . . 1 . . . . . . . . . . . 2 . 1 . . . . . . . . . . . . . . . . . . Non-combat 4 | . . . . . . . . . 1 . . . . . . . . . . . 2 . 1 . . . . . . . . . . . . . . . . . . Combat . | . . . . . . . . . . . . . . . . . . . . . . . . . . . . . . . . . . . . . . . . . . Robot Hacks Applied 4 | . . . . . . . . . 1 . . . . . . . . . . . 2 . 1 . . . . . . . . . . . . . . . . . . parse_system 1 | . . . . . . . . . . . . . . . . . . . . . . . 1 . . . . . . . . . . . . . . . . . . find_chute 3 | . . . . . . . . . 1 . . . . . . . . . . . 2 . . . . . . . . . . . . . . . . . . . . Relay Couplers Released 6 | . . . . . . . . . 2 . . . . . . . . . . . . . . . . . . . . . . . . . . . . . . 4 . Machine Destruction 2 | . . . . . . . . . 2 . . . . . . . . . . . . . . . . . . . . . . . . . . . . . . . . Programmers 4 | . . . . . . . . . . . . . . . . . . . . . . . . . . . . . . . . . . . . . . . . 4 . Robots Rewired 9 | . . . 1 . . . . . . . 1 . . . . . . . . . 1 . . 6 . . . . . . . . . . . . . . . . . Allies Hacked 2 | . . . . . . . . . . . . . . . . . . . . . . . . . . . . . . 1 . . . . . . . 1 . . . Hacks Repelled . | . . . . . . . . . . . . . . . . . . . . . . . . . . . . . . . . . . . . . . . . . . Allies | -11 -10 -10 -9 -9 -9 -8 -8 -8 -7 -7 -7 -7 -7 -7 -6 -6 -6 -6 -6 -5 -5 -5 -5 -5 -5 -5 -5 -4 -4 -4 -4 -4 -4 -3 -3 -3 -2 -2 -2 -1 -1 -------- Run | Scr Mat Min Mat Min Exi Min Mat Sto Fac Was Fac Low Low Dat Pro Fac Low Low Zio Pro Fac Was Fac Ext Cet Arc Hub Fac Was Fac Upp Upp Zhi Pro Res Qua Res Tes Sec Acc Com Total Allies 108 | . . 2 1 3 . . . 2 . . 1 . . . 1 . . . 4 . 2 . 1 22 5 . 1 2 20 1 . . . . 1 1 . 2 . 1 35 Largest Group 19 | . . 2 1 3 2 2 . 2 1 . 1 . . . 1 1 . . 4 4 1 . 1 12 14 10 7 2 19 10 2 1 1 1 1 1 . 2 . 1 16 Highest-Rated Group 766 | . . 43 10 40 24 24 . 109 10 . 32 . . . 94 94 . . 121 121 12 . 10 447 766 603 489 188 696 306 56 33 33 33 10 26 . 20 . 44 450 Highest-Rated Ally 243 | . . 31 10 16 16 16 . 99 10 . 32 . . . 94 94 . . 42 42 12 . 10 156 144 94 94 94 50 46 33 33 33 33 10 26 . 10 . 44 243 Total Orders 19 | . . . . . . . . 5 2 . . . . . . . . . . . 2 . . 1 4 . 4 . . . . . . . . . . 1 . . . STAY 4 | . . . . . . . . 1 1 . . . . . . . . . . . . . . . 1 . . . . . . . . . . . . 1 . . . GOTO 8 | . . . . . . . . 1 . . . . . . . . . . . . 2 . . 1 1 . 3 . . . . . . . . . . . . . . ROAM 1 | . . . . . . . . 1 . . . . . . . . . . . . . . . . . . . . . . . . . . . . . . . . . FOLLOW 6 | . . . . . . . . 2 1 . . . . . . . . . . . . . . . 2 . 1 . . . . . . . . . . . . . . Ally Attacks 720 | . . 19 . 11 . 15 . . . . 5 . . . 4 12 . . . 25 1 . . 158 43 34 65 6 20 56 . . . . . . . . . . 246 Total Damage 16521 | . . 236 . 121 . 164 . . . . 239 . . . 138 461 . . . 336 . . . 3435 1018 1054 2363 229 617 1062 . . . . . . . . . . 5048 Kills 102 | . . 3 . 2 . 3 . . . . 2 . . . 2 6 . . . 6 . . . 27 9 4 15 1 . 5 . . . . . . . . . . 17 Allies Corrupted 1 | . . . . . . . . . . . . . . . . . . . . . . . . . . . . . . . . . . . . . . 1 . . . Allies Melted . | . . . . . . . . . . . . . . . . . . . . . . . . . . . . . . . . . . . . . . . . . . Intel | -11 -10 -10 -9 -9 -9 -8 -8 -8 -7 -7 -7 -7 -7 -7 -6 -6 -6 -6 -6 -5 -5 -5 -5 -5 -5 -5 -5 -4 -4 -4 -4 -4 -4 -3 -3 -3 -2 -2 -2 -1 -1 ------- Run | Scr Mat Min Mat Min Exi Min Mat Sto Fac Was Fac Low Low Dat Pro Fac Low Low Zio Pro Fac Was Fac Ext Cet Arc Hub Fac Was Fac Upp Upp Zhi Pro Res Qua Res Tes Sec Acc Com Robot Analysis Total 5 | . . . 1 . . . . . . . . . . . . . . . . . . . . . . . . . . . . . 4 . . . . . . . . Derelict Logs Recovered 10 | . . 2 . 2 . . . . . . . . 1 . 1 . . . 2 . . . . . . . . . . . 1 1 . . . . . . . . . Drone Launches 2 | . . . . . . . . . . . . . . . . . . . . 2 . . . . . . . . . . . . . . . . . . . . . Drone Recoveries . | . . . . . . . . . . . . . . . . . . . . . . . . . . . . . . . . . . . . . . . . . . Exploration | -11 -10 -10 -9 -9 -9 -8 -8 -8 -7 -7 -7 -7 -7 -7 -6 -6 -6 -6 -6 -5 -5 -5 -5 -5 -5 -5 -5 -4 -4 -4 -4 -4 -4 -3 -3 -3 -2 -2 -2 -1 -1 ------------- Run | Scr Mat Min Mat Min Exi Min Mat Sto Fac Was Fac Low Low Dat Pro Fac Low Low Zio Pro Fac Was Fac Ext Cet Arc Hub Fac Was Fac Upp Upp Zhi Pro Res Qua Res Tes Sec Acc Com Turns Passed 40263 | 84 1306 1314 2707 1826 458 2101 624 2512 2325 523 1428 596 328 138 755 1485 167 585 793 322 1335 108 409 805 292 267 453 923 354 704 313 188 113 265 1337 1177 1330 956 1868 2487 2202 Spaces Moved 29309 | 47 680 750 1041 847 217 941 226 1189 1083 338 599 342 210 90 436 1040 203 503 1058 312 888 77 437 655 163 223 298 647 321 553 332 220 136 235 1024 1219 1362 927 1865 2853 2722 Core 8 | 8 . . . . . . . . . . . . . . . . . . . . . . . . . . . . . . . . . . . . . . . . . Treads . | . . . . . . . . . . . . . . . . . . . . . . . . . . . . . . . . . . . . . . . . . . Legs 9189 | 39 680 750 1041 847 217 941 226 1189 1083 338 599 342 210 90 436 161 . . . . . . . . . . . . . . . . . . . . . . . . . Wheels . | . . . . . . . . . . . . . . . . . . . . . . . . . . . . . . . . . . . . . . . . . . Hover 20112 | . . . . . . . . . . . . . . . . 879 203 503 1058 312 888 77 437 655 163 223 298 647 321 553 332 220 136 235 1024 1219 1362 927 1865 2853 2722 Flight . | . . . . . . . . . . . . . . . . . . . . . . . . . . . . . . . . . . . . . . . . . . Fastest Speed 44 | 50 120 160 190 210 210 210 180 150 150 150 150 150 150 150 150 58 68 68 68 68 68 68 68 68 68 68 68 68 68 68 68 68 68 68 48 48 48 48 44 44 44 Average Speed 92 | 114 154 164 207 210 210 210 180 150 150 150 151 150 150 150 150 79 68 68 68 68 68 68 68 68 68 68 68 68 68 68 68 68 68 68 66 48 48 48 45 44 44 Slowest Speed 270 | 150 210 180 240 210 210 210 180 270 180 150 180 150 150 150 150 150 68 68 68 68 72 68 72 68 68 68 68 68 68 68 68 68 68 68 72 48 48 152 48 48 48 Overloaded Moves . | . . . . . . . . . . . . . . . . . . . . . . . . . . . . . . . . . . . . . . . . . . Propulsion Burnouts . | . . . . . . . . . . . . . . . . . . . . . . . . . . . . . . . . . . . . . . . . . . Robots Hopped . | . . . . . . . . . . . . . . . . . . . . . . . . . . . . . . . . . . . . . . . . . . Cave-ins Triggered . | . . . . . . . . . . . . . . . . . . . . . . . . . . . . . . . . . . . . . . . . . . Teleports 4 | . . . . . . . . . . . . . . . . . . . . . . . . . . . . . . . . . . . . 1 1 . 2 . . Exploration Rate (%) 55 | 4 78 98 95 99 61 93 23 89 28 89 19 50 35 69 60 27 39 65 85 46 20 73 9 85 62 83 18 12 88 19 53 46 60 39 25 87 37 77 74 52 73 Regions Visited 41 Branch Regions 25 Pre-discovered Areas 10 | . 1 2 1 1 1 . . . . . . . . 1 . . . . . . . . . . . . . . . . . . 3 . . . . . . . . Known Exits Taken 27 | . . . . . . . 1 . . . 1 1 1 1 1 1 1 1 1 1 . . 1 1 1 1 1 . . 1 1 1 1 1 1 1 1 1 1 1 . Unknown Exits Taken 8 | 1 1 1 1 1 1 1 . 1 . . . . . . . . . . . . . . . . . . . . . . . . . . . . . . . . . Scrap Searched 23 | . . 2 . 1 . 1 . . . . . 2 3 . . . . 2 4 2 . . . . . . . . . . 2 3 . 1 . . . . . . . Spaces Dug 370 | . 7 . 11 . . . 1 2 28 . 16 . . . 3 8 . 14 . 6 47 13 . . . . 3 19 . 21 . 12 . 13 15 25 55 17 21 11 2 Terrain Destroyed 1058 | . 72 11 78 . . 30 23 38 32 . 73 5 1 . 7 13 . 15 . 11 47 13 . 11 22 1 7 24 7 37 11 14 . 21 38 38 119 41 41 52 105 Melee 107 | . . . . . . . . 2 13 . 13 . . . . 8 . 11 . . 47 13 . . . . . . . . . . . . . . . . . . . Projectile 488 | . . . . . . 2 7 1 . . 7 1 1 . 7 . . 4 . 11 . . . 11 3 1 7 24 7 37 11 14 . 21 38 38 79 41 41 23 51 AOE 463 | . 72 11 78 . . 28 16 35 19 . 53 4 . . . 5 . . . . . . . . 19 . . . . . . . . . . . 40 . . 29 54 Actions | -11 -10 -10 -9 -9 -9 -8 -8 -8 -7 -7 -7 -7 -7 -7 -6 -6 -6 -6 -6 -5 -5 -5 -5 -5 -5 -5 -5 -4 -4 -4 -4 -4 -4 -3 -3 -3 -2 -2 -2 -1 -1 --------- Run | Scr Mat Min Mat Min Exi Min Mat Sto Fac Was Fac Low Low Dat Pro Fac Low Low Zio Pro Fac Was Fac Ext Cet Arc Hub Fac Was Fac Upp Upp Zhi Pro Res Qua Res Tes Sec Acc Com Total 39546 | 63 843 788 1359 873 221 1000 357 1664 1623 355 1015 401 217 93 527 1665 220 723 1131 395 1540 112 544 962 293 302 538 1105 384 822 387 244 156 302 1599 1714 1864 1357 2609 3745 3434 Wait 7068 | 4 55 1 80 10 1 6 62 215 393 . 289 34 5 . 86 519 7 196 74 52 568 21 94 263 84 48 232 427 22 215 34 18 9 47 497 420 341 332 516 591 200 Move 29270 | 46 679 749 1040 846 216 940 225 1188 1083 337 598 341 209 89 435 1039 202 502 1057 311 888 76 436 654 162 222 297 647 320 552 331 219 135 234 1023 1218 1361 926 1864 2852 2721 Hop . | . . . . . . . . . . . . . . . . . . . . . . . . . . . . . . . . . . . . . . . . . . Pick Up 259 | 1 22 2 27 1 . 5 5 22 7 4 9 4 . . . 16 . 2 . 1 5 . 4 1 5 3 . 2 1 1 1 . 2 . 11 9 10 11 15 22 28 Fast Attach 149 | 6 1 1 6 . . . 1 31 4 5 6 . . 2 . 8 . . . . 3 1 3 . . 1 . . 2 . . . 4 . 2 1 . 3 20 20 18 Attach 130 | . 2 . 9 1 . 3 2 9 8 . 2 3 . . 1 2 . . . 1 3 . 1 1 . . . 2 . . 1 . . . 5 4 14 10 9 13 24 Detach 18 | . . . . . . . . . . . . . . . . . . . . . . . . . . . . . . . . . . . 1 . 3 4 1 1 8 Swap 298 | 1 11 4 19 1 2 5 9 25 27 1 23 8 . . . 21 2 4 . 3 8 . . 3 15 6 2 3 . 11 3 . 1 2 6 5 15 6 24 12 10 Drop 287 | . 9 4 25 1 2 4 6 45 5 8 13 1 . 2 . 23 . 2 . 1 7 1 3 . 5 3 . . 3 5 . . 5 . 7 6 2 6 16 29 38 Fire 1828 | 5 64 27 143 13 . 37 47 119 46 . 58 10 3 . 5 16 9 6 . 25 7 . 1 25 22 11 7 24 36 38 17 7 . 18 46 51 118 59 143 205 360 Melee 167 | . . . . . . . . 10 45 . 16 . . . . 11 . 11 . . 51 13 2 . . 8 . . . . . . . . . . . . . . . Ram 1 | . . . . . . . . . . . . . . . . . . . . . . . . . . . . . . . . . . . . . . . 1 . . Kick 2 | . . . 2 . . . . . . . . . . . . . . . . . . . . . . . . . . . . . . . . . . . . . . Crush . | . . . . . . . . . . . . . . . . . . . . . . . . . . . . . . . . . . . . . . . . . . Escape Stasis 42 | . . . . . . . . . 5 . . . . . . 10 . . . . . . . . . . . . . . . . . . 1 . . . . . 26 Rewire 26 | . . . 8 . . . . . . . 1 . . . . . . . . . . . . 15 . . . . . . . . . 1 . . . . . . 1 Trap . | . . . . . . . . . . . . . . . . . . . . . . . . . . . . . . . . . . . . . . . . . . Miscellaneous 1 | . . . . . . . . . . . . . . . . . . . . 1 . . . . . . . . . . . . . . . . . . . . . Route ------- -11/Scrapyard -10/Materials (discovered 2 exits: *Mat / [*Min]) -10/Mines (discovered 2 exits: *Mat x2) -9/Materials (discovered 5 exits: *Mat x3 / [*Min x2]) -9/Mines (discovered 3 exits: *Mat x2 / *Exi) -9/Exiles (discovered 2 exits: [*Min x2]) -8/Mines (discovered 2 exits: *Mat x2) -8/Materials -8/Storage -7/Factory -7/Waste -7/Factory (discovered 3 exits: *Fac / *Low x2) -7/Lower Caves -7/Lower Caves -7/Data Miner -6/Proximity Caves -6/Factory -6/Lower Caves -6/Lower Caves -6/Zion -5/Proximity Caves -5/Factory (discovered 4 exits: *Upp x2 / Ext x2) -5/Waste -5/Factory (discovered 4 exits: Upp x2 / *Ext x2) -5/Extension (discovered 3 exits: *Fac x2 / *Cet) -5/Cetus -5/Archives (discovered 3 exits: *Fac / *Hub x2) -5/Hub_04(d) (discovered 4 exits: *Fac x4) -4/Factory (discovered 2 exits: Upp x2) -4/Waste -4/Factory (discovered 2 exits: *Upp x2) -4/Upper Caves -4/Upper Caves (discovered 2 exits: *Res / *Zhi) -4/Zhirov -3/Proximity Caves -3/Research (discovered 3 exits: Arm / *Qua x2) -3/Quarantine -2/Research (discovered 3 exits: Acc / *Tes x2) -2/Testing (discovered 2 exits: *Acc / *Sec) -2/Section 7 -1/Access -1/Command (discovered 2 exits: [*Sur x2]) To Fleet Rendezvous History --------- Turn | Location | Event 9 | -11/Scrapyard | Discovered new exit (range 16) 85 | -11/Scrapyard | Entered Materials 307 | -10/Materials | Build established: Mutant 347 | -10/Materials | Discovered new exit (range 8) 994 | -10/Materials | Discovered new exit (range 15) 1391 | -10/Materials | Entered Mines 1396 | -10/Mines | A weapon hastily lodged in a ceiling crevice suddenly fell to the ground 1425 | -10/Mines | Discovered new exit (range 10) 1563 | -10/Mines | Received a Rocket Launcher from a helpful Derelict 2218 | -10/Mines | Learned location of Zion (-6) 2661 | -10/Mines | Discovered new exit (range 7) 2705 | -10/Mines | Entered Materials 2705 | -9/Materials | Evolved 2 slots: Utility x2 2816 | -9/Materials | Discovered new exit (range 16) 3011 | -9/Materials | Build established: Hauler-Mutant 3650 | -9/Materials | Lost 3 parts (1p1u1w) 3709 | -9/Materials | Discovered new exit (range 15) 3930 | -9/Materials | Discovered new exit (range 16) 4610 | -9/Materials | Discovered new exit (range 10) 5153 | -9/Materials | Discovered new exit (range 9) 5412 | -9/Materials | Entered Mines 5683 | -9/Mines | Learned location of Storage (-8) 5795 | -9/Mines | Discovered new exit (range 7) 5914 | -9/Mines | Found a hidden stash of uninstalled traps 6268 | -9/Mines | Assisted by bots powering up and referring to "LRC-V3" 6404 | -9/Mines | Discovered new exit (range 6) 6512 | -9/Mines | Learned Materials stockpile data 6825 | -9/Mines | Deemed a non-threat by the Exiles lab entrance 7222 | -9/Mines | Discovered new exit (range 5) 7238 | -9/Mines | Entered Exiles 7238 | -9/Exiles | Accompanied by 2 allies 7270 | -9/Exiles | Discovered new exit (range 15) 7295 | -9/Exiles | Met 8R-AWN 7325 | -9/Exiles | Met EX-HEX 7430 | -9/Exiles | Met EX-DEC 7464 | -9/Exiles | Visited The Gauntlet 7676 | -9/Exiles | Discovered new exit (range 11) 7696 | -9/Exiles | Entered Mines 7696 | -8/Mines | Accompanied by 2 allies 8257 | -8/Mines | Discovered new exit (range 9) 8704 | -8/Mines | Core integrity fell below 50% 8867 | -8/Mines | Discovered new exit (range 11) 9797 | -8/Mines | Entered Materials 9797 | -8/Materials | Evolved 2 slots: Propulsion x1, Utility x1 10351 | -8/Materials | Discovered new exit (range 6) 10385 | -8/Materials | Identified exit to Storage 10421 | -8/Materials | Entered Storage 10908 | -8/Storage | Found Prototype Launcher 10908 | -8/Storage | Identified Gui. Missile Launcher 11080 | -8/Storage | Lost 3 parts (1u2w) 11919 | -8/Storage | Discovered new exit (range 16) 12017 | -8/Storage | Repaired Carbon-fiber Leg 12056 | -8/Storage | Repaired Carbon-fiber Leg 12159 | -8/Storage | Found Prototype Protection 12159 | -8/Storage | Identified Lgt. Regenerative Plating 12431 | -8/Storage | Met 01-MTF 12556 | -8/Storage | Destroyed 01-MTF 12562 | -8/Storage | Found 01-MTF's Shockpuncher 12800 | -8/Storage | Repaired Adv. Heat Sink 12933 | -8/Storage | Entered Factory 12933 | -7/Factory | Accompanied by 1 ally 12933 | -7/Factory | Evolved 2 slots: Utility x2 12934 | -7/Factory | Identified exit to Lower Caves 14141 | -7/Factory | Garrison activated, responded to threat 14200 | -7/Factory | Lost 3 parts (1n2w) 14642 | -7/Factory | Fabricated Myomer Leg (x2) 14938 | -7/Factory | Fabricated Hacking Suite? 15258 | -7/Factory | Sucked down chute 15258 | -7/Factory | Entered Waste 15258 | -7/Waste | The area was eerily silent 15475 | -7/Waste | Discovered new exit (range 13) 15779 | -7/Waste | Identified exit to Factory 15781 | -7/Waste | Entered Factory 16568 | -7/Factory | Fabricated Cmb. Airjet? 16570 | -7/Factory | Local fabrication network quarantined 16741 | -7/Factory | Discovered new exit (range 5) 16806 | -7/Factory | Identified exit to Factory 17209 | -7/Factory | Entered Lower Caves 17392 | -7/Lower Caves | Spotted B-75 Beast 17472 | -7/Lower Caves | Encountered a Warlord checkpoint 17581 | -7/Lower Caves | Lost 3 parts (1u2w) 17591 | -7/Lower Caves | Destroyed B-75 Beast 17793 | -7/Lower Caves | Discovered new exit (range 9) 17803 | -7/Lower Caves | Identified exit to Lower Caves 17805 | -7/Lower Caves | Entered another Lower Caves area 17935 | -7/Lower Caves | Learned Extension terminal intel 18059 | -7/Lower Caves | Learned Factory garrison access intel 18096 | -7/Lower Caves | Encountered a Warlord checkpoint 18112 | -7/Lower Caves | Discovered new exit (range 7) 18131 | -7/Lower Caves | Identified exit to Data Miner 18133 | -7/Lower Caves | Entered Data Miner 18134 | -7/Data Miner | Discovered new exit (range 6) 18163 | -7/Data Miner | Met Data Miner 18191 | -7/Data Miner | Learned location of Section 7 (-2) 18191 | -7/Data Miner | Acquired the access code to Warlord's prototype stash 18212 | -7/Data Miner | Received God Mode back door access code from Data Miner 18269 | -7/Data Miner | Identified exit to Proximity Caves 18271 | -7/Data Miner | Entered Proximity Caves 18505 | -6/Proximity Caves | Learned location of 1 exit from Factory 18509 | -6/Proximity Caves | Discovered exit to Factory (range 9) 18941 | -6/Proximity Caves | Escorted by Enhanced Grunt 19026 | -6/Proximity Caves | Entered Factory 19026 | -6/Factory | Accompanied by 1 ally 19026 | -6/Factory | Evolved 2 slots: Propulsion x1, Utility x1 19027 | -6/Factory | Identified exit to Lower Caves 19028 | -6/Factory | Loaded intel: 4 garrison access locations 19563 | -6/Factory | Fabricated Cmb. Airjet (x2) 19958 | -6/Factory | Fabricated Exp. Sensor Array? 20123 | -6/Factory | Fabricated Hacking Suite? 20175 | -6/Factory | Incoming investigation squad redirected 20288 | -6/Factory | Incoming investigation squad redirected 20420 | -6/Factory | Build established: Machinist-Mutant 20427 | -6/Factory | Local fabrication network quarantined 20506 | -6/Factory | Repaired Mni. Fusion Reactor 20511 | -6/Factory | Entered Lower Caves 20637 | -6/Lower Caves | Discovered new exit (range 16) 20647 | -6/Lower Caves | Identified exit to Lower Caves 20678 | -6/Lower Caves | Entered another Lower Caves area 21257 | -6/Lower Caves | Discovered new exit (range 10) 21263 | -6/Lower Caves | Identified exit to Zion 21263 | -6/Lower Caves | Entered Zion 21304 | -6/Zion | System corruption cleaned by Quarantine Array 21402 | -6/Zion | Acquired unknown access codes intercepted by a Zionite 21903 | -6/Zion | Gained Derelict followers 21972 | -6/Zion | Discovered new exit (range 16) 21982 | -6/Zion | Identified exit to Proximity Caves 22056 | -6/Zion | Entered Proximity Caves 22056 | -5/Proximity Caves | Accompanied by 4 allies 22290 | -5/Proximity Caves | Discovered new exit (range 9) 22321 | -5/Proximity Caves | Attracted the attention of an 0b10 base 22358 | -5/Proximity Caves | Learned Armory terminal intel 22378 | -5/Proximity Caves | Identified exit to Factory 22378 | -5/Proximity Caves | Entered Factory 22378 | -5/Factory | Evolved 2 slots: Utility x2 22466 | -5/Factory | Mak. System Shield fried by hacking feedback 22680 | -5/Factory | Build established: Hacker-Mutant 22766 | -5/Factory | Identified exit to Upper Caves 22766 | -5/Factory | Identified exit to Extension 22862 | -5/Factory | Spotted B-75 Beast 22959 | -5/Factory | Fabricated Cmb. Gravmag System (x2) 23036 | -5/Factory | Fabricated Cmb. Gravmag System (x2) 23070 | -5/Factory | Local fabrication network quarantined 23118 | -5/Factory | Fabricated Exp. Signal Interpreter (x1) 23460 | -5/Factory | Incoming investigation squad redirected 23713 | -5/Factory | Sucked down chute 23713 | -5/Factory | Entered Waste 23720 | -5/Waste | Spotted C-40 Crusher 23728 | -5/Waste | EMP discharged 23798 | -5/Waste | Spotted C-40 Crusher 23800 | -5/Waste | Spotted C-40 Crusher 23802 | -5/Waste | Spotted C-40 Crusher 23813 | -5/Waste | Discovered new exit (range 12) 23820 | -5/Waste | Identified exit to Factory 23821 | -5/Waste | Entered Factory 23923 | -5/Factory | Local fabrication network quarantined 23973 | -5/Factory | Fabricated Exp. Sensor Array (x1) 24230 | -5/Factory | Entered Extension 24230 | -5/Extension | Accompanied by 1 ally 24231 | -5/Extension | Loaded intel: 17 terminal locations 24262 | -5/Extension | Rescued a captive Derelict 24263 | -5/Extension | Rescued a captive Derelict 24272 | -5/Extension | Build established: Machinist-Mutant 24293 | -5/Extension | Rescued A7 24311 | -5/Extension | Rescued a captive Derelict 24380 | -5/Extension | Rescued a captive Derelict 24391 | -5/Extension | Rescued a captive Derelict 24406 | -5/Extension | Rescued a captive Derelict 24406 | -5/Extension | Rescued a captive Derelict 24671 | -5/Extension | Spotted B-75 Beast 24679 | -5/Extension | Allies destroyed B-75 Beast 24695 | -5/Extension | Spotted B-75 Beast 24711 | -5/Extension | Destroyed B-75 Beast 24731 | -5/Extension | Discovered new exit (range 5) 24754 | -5/Extension | Rescued a captive Derelict 24773 | -5/Extension | Rescued a captive Derelict 24775 | -5/Extension | Rescued a captive Derelict 24799 | -5/Extension | Rescued a captive Derelict 24800 | -5/Extension | Rescued a captive Derelict 24861 | -5/Extension | Rescued a captive Derelict 24988 | -5/Extension | Discovered new exit (range 10) 24989 | -5/Extension | Discovered new exit (range 6) 24999 | -5/Extension | Identified exit to Cetus 25033 | -5/Extension | Disrupted transfer network 25035 | -5/Extension | Entered Cetus 25035 | -5/Cetus | Accompanied by 12 allies 25040 | -5/Cetus | Acquired a Cetus Manufacturing Module code from A7 25055 | -5/Cetus | Spotted Cetus Guard 25055 | -5/Cetus | Spotted Cetus Guard 25055 | -5/Cetus | Allies destroyed Cetus Guard 25057 | -5/Cetus | Spotted Cetus Guard 25060 | -5/Cetus | Spotted Cetus Guard 25063 | -5/Cetus | Destroyed Cetus Guard 25067 | -5/Cetus | Allies destroyed Cetus Guard 25074 | -5/Cetus | Destroyed Cetus Guard 25119 | -5/Cetus | Started Cetus Manufacturing Module 25144 | -5/Cetus | Manufactured an Enhanced Grunt 25169 | -5/Cetus | Manufactured an Enhanced Grunt 25194 | -5/Cetus | Manufactured an Enhanced Grunt 25219 | -5/Cetus | Manufactured an Enhanced Grunt 25230 | -5/Cetus | Destroyed A7 25231 | -5/Cetus | Extracted ID and sensor layout for unrecognized location from A7's data core 25242 | -5/Cetus | Found Prototype Protection 25243 | -5/Cetus | Identified Med. Regenerative Plating 25244 | -5/Cetus | Manufactured an Enhanced Grunt 25295 | -5/Cetus | Discovered new exit (range 16) 25305 | -5/Cetus | Identified exit to Archives 25327 | -5/Cetus | Entered Archives 25327 | -5/Archives | Accompanied by 10 allies 25384 | -5/Archives | Discovered new exit (range 16) 25420 | -5/Archives | Discovered new exit (range 16) 25438 | -5/Archives | Discovered new exit (range 16) 25565 | -5/Archives | Identified exit to Hub_04(d) 25594 | -5/Archives | Entered Hub_04(d) 25594 | -5/Hub_04(d) | Accompanied by 6 allies 25595 | -5/Hub_04(d) | Discovered new exit (range 10) 25602 | -5/Hub_04(d) | Identified exit to Factory 25670 | -5/Hub_04(d) | Build established: Hacker-Mutant 25850 | -5/Hub_04(d) | Garrison activated, responded to threat 25970 | -5/Hub_04(d) | Network Hub disabled 26047 | -5/Hub_04(d) | Entered Factory 26047 | -4/Factory | Accompanied by 2 allies 26047 | -4/Factory | Evolved 2 slots: Utility x2 26335 | -4/Factory | Build established: Wizard-Mutant 26384 | -4/Factory | Identified exit to Upper Caves 26714 | -4/Factory | Fabricated Exp. Hacking Suite (x1) 26762 | -4/Factory | Fabricated Exp. Hacking Suite (x1) 26812 | -4/Factory | Fabricated Exp. Hacking Suite (x1) 26947 | -4/Factory | Local fabrication network quarantined 26970 | -4/Factory | Sucked down chute 26970 | -4/Factory | Entered Waste 26971 | -4/Waste | Met a frightened Derelict 26976 | -4/Waste | Spotted C-40 Crusher 26995 | -4/Waste | 1 allies followed down the chute 27006 | -4/Waste | Destroyed C-40 Crusher 27009 | -4/Waste | Spotted C-40 Crusher 27027 | -4/Waste | Destroyed C-40 Crusher 27036 | -4/Waste | Spotted C-40 Crusher 27036 | -4/Waste | Spotted C-40 Crusher 27066 | -4/Waste | Destroyed C-40 Crusher 27072 | -4/Waste | Destroyed C-40 Crusher 27092 | -4/Waste | Spotted C-40 Crusher 27110 | -4/Waste | Destroyed C-40 Crusher 27113 | -4/Waste | Spotted C-40 Crusher 27126 | -4/Waste | Destroyed C-40 Crusher 27152 | -4/Waste | Discovered new exit (range 16) 27245 | -4/Waste | Warlord forces began an assault 27313 | -4/Waste | Identified exit to Factory 27324 | -4/Waste | Entered Factory 27324 | -4/Factory | Accompanied by 9 allies 27519 | -4/Factory | Fabricated Cmb. Antigrav System (x2) 27557 | -4/Factory | Fabricated Cmb. Antigrav System (x2) 27587 | -4/Factory | Garrison activated, responded to threat 27594 | -4/Factory | Fabricated Adv. Armor Integrity Analyzer (x1) 27770 | -4/Factory | Spotted B-86 Titan 27809 | -4/Factory | Local fabrication network quarantined 27908 | -4/Factory | Spotted B-86 Titan 28028 | -4/Factory | Entered Upper Caves 28028 | -4/Upper Caves | Accompanied by 2 allies 28098 | -4/Upper Caves | Learned Research terminal intel 28332 | -4/Upper Caves | Discovered new exit (range 9) 28339 | -4/Upper Caves | Identified exit to Upper Caves 28341 | -4/Upper Caves | Entered another Upper Caves area 28341 | -4/Upper Caves | Accompanied by 1 ally 28358 | -4/Upper Caves | Discovered new exit (range 6) 28363 | -4/Upper Caves | Identified exit to Research 28411 | -4/Upper Caves | Encountered a Warlord checkpoint 28481 | -4/Upper Caves | Identified exit to Zhirov 28529 | -4/Upper Caves | Entered Zhirov 28529 | -4/Zhirov | Accompanied by 1 ally 28530 | -4/Zhirov | Discovered new exit (range 3) 28543 | -4/Zhirov | Met Zhirov 28555 | -4/Zhirov | Learned location of Quarantine (-3) 28555 | -4/Zhirov | Learned location of Testing (-2) 28555 | -4/Zhirov | Learned location of Command (-1) 28561 | -4/Zhirov | Zhirov requested help retrieving the SGEMP Prototype 28572 | -4/Zhirov | Found Alien Artifact 28572 | -4/Zhirov | Identified Integrated Reactor 28572 | -4/Zhirov | Installed Integrated Reactor, increased core energy generation (+2%) 28583 | -4/Zhirov | Found Alien Artifact 28634 | -4/Zhirov | Identified exit to Proximity Caves 28642 | -4/Zhirov | Entered Proximity Caves 28642 | -3/Proximity Caves | Accompanied by 1 ally 28788 | -3/Proximity Caves | Received a Behemoth hack from an annoying Tinkerer 28841 | -3/Proximity Caves | Attracted the attention of an 0b10 checkpoint 28893 | -3/Proximity Caves | Discovered exit to Research (range 8) 28907 | -3/Proximity Caves | Entered Research 28907 | -3/Research | Evolved 2 slots: Utility x2 28908 | -3/Research | Loaded intel: 22 terminal locations 28964 | -3/Research | Repaired Lrg. Storage Unit 29057 | -3/Research | Identified exit to Armory 29057 | -3/Research | Identified exit to Quarantine 29208 | -3/Research | P-80 Master assimilated allied Technician 8a 29380 | -3/Research | Fabricated Particle Accelerator (x1) 29409 | -3/Research | Fabricated Cld. Plasma Cannon (x1) 29984 | -3/Research | Fabricated Cmb. Linear Gravjet (x2) 30022 | -3/Research | Fabricated Cmb. Linear Gravjet (x2) 30077 | -3/Research | Fabricated Mni. Fusion Reactor (x1) 30116 | -3/Research | Fabricated Exp. Targeting Computer (x1) 30210 | -3/Research | Local fabrication network quarantined 30244 | -3/Research | Entered Quarantine 30249 | -3/Quarantine | Identified exit to Research 30257 | -3/Quarantine | Identified Transdimensional Reconstructor 30265 | -3/Quarantine | Found Alien Artifact 30273 | -3/Quarantine | Identified Hpw. Transdimensional Reconstructor 30290 | -3/Quarantine | Found Alien Artifact 30300 | -3/Quarantine | Identified Dimensional Node Initializer 30316 | -3/Quarantine | Found Hpw. Transdimensional Reconstructor 30372 | -3/Quarantine | Found Quantum Capacitor 30701 | -3/Quarantine | Repaired Cld. Plasma Cannon 30726 | -3/Quarantine | Repaired Adv. Cloaking Device 30765 | -3/Quarantine | Repaired Mni. Fusion Reactor 30900 | -3/Quarantine | Found Alien Artifact 31019 | -3/Quarantine | Cryocooling Duct disabled 31024 | -3/Quarantine | Found Alien Artifact 31032 | -3/Quarantine | Warped through subspace 31034 | -3/Quarantine | Ambient heat levels rising (+20) 31034 | -3/Quarantine | Non-combat units ordered to evacuate 31178 | -3/Quarantine | Found Hpw. Transdimensional Reconstructor 31421 | -3/Quarantine | Entered Research 31421 | -2/Research | Evolved 2 slots: Power x1, Utility x1 31435 | -2/Research | Identified exit to Testing 31555 | -2/Research | Spotted B-90 Cyclops 31771 | -2/Research | Fabricated Coolant Network (x1) 31796 | -2/Research | Fabricated Cmb. Linear Gravjet (x2) 31818 | -2/Research | Incoming investigation squad redirected 31832 | -2/Research | Fabricated Exp. Hacking Suite (x1) 31917 | -2/Research | Local fabrication network quarantined 32103 | -2/Research | Lost 4 parts (1n1u2w) 32111 | -2/Research | Destroyed 8 combat bots 32183 | -2/Research | Incoming investigation squad redirected 32326 | -2/Research | Build established: Hacker-Mutant 32400 | -2/Research | Lost 3 parts (1n2w) 32482 | -2/Research | Warped through subspace 32522 | -2/Research | Spotted B-90 Cyclops 32615 | -2/Research | Spotted B-90 Cyclops 32671 | -2/Research | First assault squad dispatched 32725 | -2/Research | Discovered new exit (range 16) 32736 | -2/Research | System corruption reached 10% 32751 | -2/Research | Entered Testing 33219 | -2/Testing | Fabricated Cmb. Linear Gravjet (x2) 33251 | -2/Testing | Local fabrication network quarantined 33274 | -2/Testing | Fabricated Mni. Fusion Reactor (x1) 33333 | -2/Testing | Discovered new exit (range 15) 33420 | -2/Testing | Repaired Exp. Sensor Array 33501 | -2/Testing | First assault squad dispatched 33537 | -2/Testing | Incoming assault squad redirected 33562 | -2/Testing | Repaired Lrg. Storage Unit? 33590 | -2/Testing | Repaired Hvy. Antimatter Reactor? 33613 | -2/Testing | Found Prototype Processor 33623 | -2/Testing | Found Prototype Ballistic Gun 33635 | -2/Testing | Found Prototype Ballistic Cannon 33666 | -2/Testing | Spotted Fortress 33702 | -2/Testing | Discovered new exit (range 5) 33703 | -2/Testing | Identified exit to Section 7 33707 | -2/Testing | Entered Section 7 33709 | -2/Section 7 | Identified Core Reset Matrix 33709 | -2/Section 7 | Identified Subatomic Replicator 33709 | -2/Section 7 | Used Core Reset Matrix 33713 | -2/Section 7 | Sensed 24 artifacts in vicinity 33863 | -2/Section 7 | Found Integrated Heat Negator 33863 | -2/Section 7 | Installed Integrated Heat Negator, increased core heat dissipation (+2%) 33883 | -2/Section 7 | Spotted S7 Guard 33896 | -2/Section 7 | Spotted S7 Guard 33998 | -2/Section 7 | Build established: Machinist-Mutant 34000 | -2/Section 7 | Found Core Membrane 34000 | -2/Section 7 | Installed Core Membrane, gained immunity to corruption 34042 | -2/Section 7 | Spotted B-90 Cyclops 34071 | -2/Section 7 | Spotted S7 Guard 34078 | -2/Section 7 | Identified Hyp. Multirail 34082 | -2/Section 7 | Used Subatomic Replicator to replicate Hyp. Multirail 34090 | -2/Section 7 | Found Integrated Singularity Reactor 34090 | -2/Section 7 | Installed Integrated Singularity Reactor, increased core energy generation (+2%) 34152 | -2/Section 7 | Identified exit to Access 34196 | -2/Section 7 | Identified Exp. Core Analyzer 34335 | -2/Section 7 | Destroyed S7 Guard 34338 | -2/Section 7 | Found Prototype Protection 34338 | -2/Section 7 | Identified Hvy. Regenerative Plating 34383 | -2/Section 7 | Spotted Executioner 34390 | -2/Section 7 | Spotted Executioner 34409 | -2/Section 7 | Destroyed Executioner 34418 | -2/Section 7 | Destroyed Executioner 34422 | -2/Section 7 | Found Exp. Targeting Computer 34424 | -2/Section 7 | Found Exp. Targeting Computer 34442 | -2/Section 7 | Found Hpw. Transdimensional Reconstructor 34503 | -2/Section 7 | Spotted B-99 Colossus 34543 | -2/Section 7 | Found LRC Boosters 34543 | -2/Section 7 | Installed LRC Boosters, increased mass support (+10) 34547 | -2/Section 7 | Found LRC Energy Well 34547 | -2/Section 7 | Installed LRC Energy Well, increased energy storage capacity (+250) 34549 | -2/Section 7 | Found LRC Insulator 34549 | -2/Section 7 | Installed LRC Insulator, gained EM resistance (25) 34621 | -2/Section 7 | Destroyed Executioner 34639 | -2/Section 7 | Spotted Executioner 34640 | -2/Section 7 | Destroyed Executioner 34663 | -2/Section 7 | Found Exp. Targeting Computer 34680 | -2/Section 7 | Found Core Expander 34680 | -2/Section 7 | Installed Core Expander, added new Propulsion slot 34821 | -2/Section 7 | Found Sigix Quantum Sheargun 34823 | -2/Section 7 | Found Sigix Quantum Sheargun 34828 | -2/Section 7 | Found Sigix Quantum Sheargun 34909 | -2/Section 7 | Incoming investigation squad redirected 34950 | -2/Section 7 | Repaired Coolant Network 34975 | -2/Section 7 | Repaired Cmb. Linear Gravjet 35210 | -2/Section 7 | Warped through subspace 35332 | -2/Section 7 | Warped through subspace 35333 | -2/Section 7 | Core integrity fell below 50% 35511 | -2/Section 7 | Found Integrated Reactor 35511 | -2/Section 7 | Installed Integrated Reactor, increased core energy generation (+2%) 35528 | -2/Section 7 | Found Integrated Dissipator 35528 | -2/Section 7 | Installed Integrated Dissipator, increased core heat dissipation (+2%) 35575 | -2/Section 7 | Entered Access 35575 | -1/Access | Evolved 2 slots: Utility x1, Weapon x1 35619 | -1/Access | Found Unknown Device 35624 | -1/Access | Identified Antimissile System 35802 | -1/Access | Build established: Alien-Mutant 35948 | -1/Access | Identified exit to Command 36325 | -1/Access | First assault squad dispatched 36351 | -1/Access | Incoming assault squad redirected 36352 | -1/Access | Build established: Wizard-Mutant 36374 | -1/Access | Destroyed 7 combat bots 36467 | -1/Access | Fabricated Exp. Force Field (x1) 36703 | -1/Access | Spotted B-99 Colossus 36709 | -1/Access | Identified Perforator 36762 | -1/Access | Lost 3 parts (1n1u1w) 36843 | -1/Access | Incoming assault squad redirected 36926 | -1/Access | Destroyed 9 combat bots 36936 | -1/Access | Central database locked down 37008 | -1/Access | Garrison activated, responded to threat 37152 | -1/Access | Fabricated Exp. Weapon Cycler? 37164 | -1/Access | Exp. Hacking Suite fried by hacking feedback 37181 | -1/Access | Incoming investigation squad redirected 37252 | -1/Access | Incoming investigation squad redirected 37254 | -1/Access | Garrison activated, responded to threat 37288 | -1/Access | Garrison activated, responded to threat 37345 | -1/Access | Repaired Cmb. Linear Gravjet 37385 | -1/Access | Repaired Cmb. Linear Gravjet 37435 | -1/Access | Repaired Adv. Energy Well 37485 | -1/Access | Repaired Adv. Energy Well 37523 | -1/Access | Repaired Cmb. Linear Gravjet 37570 | -1/Access | Repaired Imp. Proton Missile Launcher 37590 | -1/Access | Garrison activated, responded to threat 37813 | -1/Access | Found Exp. Core Analyzer 37949 | -1/Access | Destroyed 7 combat bots 38004 | -1/Access | Build established: Alien-Mutant 38062 | -1/Access | Entered Command 38211 | -1/Command | Spotted Striker 38219 | -1/Command | Destroyed Striker 38227 | -1/Command | Spotted Striker 38230 | -1/Command | Destroyed Striker 38233 | -1/Command | Spotted Alpha 7 38233 | -1/Command | Spotted Alpha 7 38251 | -1/Command | Phase Generator disabled 38285 | -1/Command | Incoming investigation squad redirected 38312 | -1/Command | First assault squad dispatched 38375 | -1/Command | Incoming assault squad redirected 38385 | -1/Command | Incoming assault squad redirected 38450 | -1/Command | Destroyed Alpha 7 38458 | -1/Command | Found Prototype Processor 38465 | -1/Command | Destroyed Alpha 7 38470 | -1/Command | Found Exp. Targeting Computer 38617 | -1/Command | Incoming assault squad redirected 38674 | -1/Command | Spotted Executioner 38675 | -1/Command | Spotted Executioner 38675 | -1/Command | Spotted Executioner 38679 | -1/Command | Destroyed Executioner 38679 | -1/Command | Destroyed Executioner 38681 | -1/Command | Destroyed Executioner 38705 | -1/Command | Identified Exp. Target Analyzer 38718 | -1/Command | Destroyed 10 combat bots 38884 | -1/Command | Spotted M Guard 38884 | -1/Command | Spotted M Guard 38884 | -1/Command | Spotted Combat Programmer 38916 | -1/Command | Spotted Combat Programmer 38930 | -1/Command | Destroyed Combat Programmer 38962 | -1/Command | Destroyed Combat Programmer 39042 | -1/Command | Destroyed M Guard 39067 | -1/Command | Destroyed M Guard 39067 | -1/Command | Destroyed all MAIN.C guards 39071 | -1/Command | Found Prototype Device 39075 | -1/Command | Found Prototype Reactor 39075 | -1/Command | Identified Zero-point Reactor 39077 | -1/Command | Found Zero-point Reactor 39087 | -1/Command | Found Zero-point Reactor 39129 | -1/Command | Identified AEGIS Remote Shield 39155 | -1/Command | Disengaged cave seal 39155 | -1/Command | Assembled emerged from the dark tunnel 39170 | -1/Command | Destroyed as-51600 39173 | -1/Command | Found Unknown Device 39276 | -1/Command | Met MAIN.C 39282 | -1/Command | 0b10 Conduit disabled 39300 | -1/Command | Allies destroyed MAIN.C Shell 39301 | -1/Command | MAIN.C activated Command garrisons 39310 | -1/Command | Build established: Alien-Gunner 39331 | -1/Command | Destroyed MAIN.C 39424 | -1/Command | Spotted B-99 Colossus 39457 | -1/Command | Destroyed B-99 Colossus 39472 | -1/Command | Lost 3 parts (1u2w) 39521 | -1/Command | Spotted B-99 Colossus 39539 | -1/Command | Destroyed 41 combat bots 39582 | -1/Command | Found Prototype Device 39582 | -1/Command | Identified Exp. Shock Absorption System 39585 | -1/Command | Found Prototype Device 39585 | -1/Command | Identified Beam Splitter 39630 | -1/Command | Destroyed B-99 Colossus 39862 | -1/Command | Build established: Scavenger-Gunner 39993 | -1/Command | Discovered new exit (range 8) 40092 | -1/Command | Discovered new exit (range 13) 40264 | *** | Heading to fleet! Last Messages --------------- 40141_ R-10 Processor suffers critical hit. 40141_ Destroyed Unknown Device. 40141_ Destroyed Unknown Wheel. 40141_ Slug penetrates R-10 Processor. 40144_ R-10 Processor destroyed. 40149_ Acquired 30 matter. 40182_ Wave Inhibitor disabled. 40192_ Acquired 15 matter. 40195_ Slug penetrates M-36 Artificer. 40198_ Destroyed Unknown Wheel. 40198_ Slug penetrates M-36 Artificer. 40198_ Destroyed Unknown Wheel. 40198_ Slug penetrates Wall. 40198_ Slug penetrates M-36 Artificer. 40201_ Slug penetrates Wall. 40201_ Slug penetrates M-36 Artificer. 40201_ M-36 Artificer suffers critical hit. 40201_ M-36 Artificer destroyed. 40201_ Slug penetrates Wall. 40208_ Acquired 45 matter. Map ----- +----------------------------------------------------+ | ???????????????????????????# ?????????????? | | ???????????????????????????# ?????????????? | | ???????????????????????????# ""????????????? | | ???????????????#########???# ! ""#???????????? | | ????????????? #?# * ""#???????????? | | ????????????? #?# T#???????????? | | ?????????????? ??# ""#???????????? | | ####?????????? ??# ""#???????????? | | # #??????????? ???# ""#???????????? | | + #??????????? ???# #???????????? | | + #???????????? ????# #???????????? | | + #???????????? ????# #???????????? | | # #????????????? ?????# #???????????? | | # #????????????? ?????# #???????????? | | # #?????????????? ??????# #???????????? | | # #?????????????? ??????# #???????????? | | # ################+##############+###???????????? | | # #????????????? | | # #????????????? | | # #????????????? | | # ################ ############# #????????????? | | # #????????#?????#+#???????????# #???????###### | | # #?????? "???????????????????# #???????""""" | | # #???? """????????######???#% #???????? | | # #??? ????????# #???# #????#""""" | | #% #?? ???????# @ #???# #?????"""""""" | | #? | ??????# #???# #????#" " | | + ??????### #???# #????#"" """ | | " ????????# #???# #????#"" """" | | ####################### #???# #????# " """" | | ## # #???# #????# " | | ## |# ##### #????# " | | #### # #????#"""" | | # #??# #* #????#"" | | # #??# # #????# | | # #??# # !!! = #????# | | + #### """"T"""" + !!! *% ###### | | # + """"""""""" # !!! %!= | | # ####################### [== =% " | | # #?# #?????????#% =%[ ! " | | # #?# #?????????# ###### """" | | # #?# "" ########### "#???# "" | | # ###? """" + ! "" ##???# """ | | #? """" # % """#????######### | | # "" ########+## T"#????????????? | | "" # [#?????????# """#????????????? | | "T # #?????????# "" #????????????? | | ###########?????????# #????????????? | | #???????????????????# #????????????? | | ##???????????????????# #????????????? | +----------------------------------------------------+ Best States ------------- Heat Dissipation 202 Energy Generation 101 Energy Capacity 1820 Matter Stores 300 Matter Capacity 300 Sight Range 16 Robot Scan Range 30 Terrain Scan Density 10 Cloak Strength 4 Armor Coverage 600 Resistance: TH 75 Resistance: EM 25 Weapon Shielding 66 Weapon Cycling 30 Evasion (%) 70 Targeting Accuracy 36 Target Analysis 12 Core Analysis 15 Armor Integrity Analysis 66 Particle Charging 30 Offensive Hacking 72 Defensive Hacking 24 Item Schematics ----------------- Exp. Force Field | -1/Access | Hacked Exp. Weapon Cycler | -1/Access | Hacked Robot Schematics ------------------ None Fabricated ------------ Myomer Leg | x2 | -7/Factory | Preloaded Hacking Suite | x1 | -7/Factory Cmb. Airjet | x2 | -7/Factory Cmb. Airjet | x2 | -6/Factory Exp. Sensor Array | x1 | -6/Factory Hacking Suite | x1 | -6/Factory Cmb. Gravmag System | x2 | -5/Factory Cmb. Gravmag System | x2 | -5/Factory Exp. Signal Interpreter | x1 | -5/Factory Exp. Sensor Array | x1 | -5/Factory Exp. Hacking Suite | x1 | -4/Factory Exp. Hacking Suite | x1 | -4/Factory Exp. Hacking Suite | x1 | -4/Factory Cmb. Antigrav System | x2 | -4/Factory Cmb. Antigrav System | x2 | -4/Factory Adv. Armor Integrity Analyzer | x1 | -4/Factory Particle Accelerator | x1 | -3/Research Cld. Plasma Cannon | x1 | -3/Research Cmb. Linear Gravjet | x2 | -3/Research Cmb. Linear Gravjet | x2 | -3/Research Mni. Fusion Reactor | x1 | -3/Research Exp. Targeting Computer | x1 | -3/Research Coolant Network | x1 | -2/Research Cmb. Linear Gravjet | x2 | -2/Research Exp. Hacking Suite | x1 | -2/Research Cmb. Linear Gravjet | x2 | -2/Testing Mni. Fusion Reactor | x1 | -2/Testing Exp. Force Field | x1 | -1/Access Exp. Weapon Cycler | x1 | -1/Access Alien Tech Used ----------------- Integrated Reactor High-powered Transdimensional Reconstructor Core Reset Matrix Integrated Heat Negator Core Membrane Subatomic Replicator Integrated Singularity Reactor LRC Boosters LRC Energy Well LRC Insulator Core Expander Transdimensional Reconstructor Integrated Dissipator Sigix Quantum Sheargun Achievements -------------- None Challenges ------------ None Game ------ Seed SwordGravitonMinigun Manual? 0 Play Time 06:03:47 Cumulative 1047.6 hours Start 2020.06.02 @ 09:41:51 End 2020.06.06 @ 12:57:15 Sessions 7 Manual Loads 0 Difficulty Rogue Special Mode None Game No. 340 Rogue 340 Adventurer 0 Explorer 0 Win Type 2 Total 77 Types 14/8/35/5/1/2/12 Lore% 97 Gallery% 96 Achievement% 85 Wizard Run 0 Options --------- ASCII 0 Keyboard 0 Movement Numpad Keybinds 0 Fullscreen 1 Font 18/SmallcapsGlow Map View 76x50 Tactical HUD 1 Map Filters NONE Filters NONE Steam 1 RUN: 0a004e32-c564-46cf-80eb-669800a5817e